OrganisationNameLabel,OrganisationURI,EffectiveDate,Directorate/ServiceWhereExpenditureIncurred,ServiceCategoryLabel,ServiceCategoryURI,Supplier,SupplierRegisteredCompany Number,PaymentDate,TransactionNumber,NetAmount,IrrecoverableVAT,PurposeOfSpend,ProcurementClassification:ProclassLabel,ProcrementClassification:ProClassCode
South Lakeland District Council,http://opendatacommunities.org/id/district-council/south-lakeland,43251,Printing Section,Central Services,http://opendatacommunities.org/def/concept/finance/sercop/objective/102,Konica Minolta Bus Solutions (UK) Ltd,,02-05-2018,0000076169,3610.29,0,Rental and Click Charges for all Konica,192000,Facilities Reprographics
South Lakeland District Council,http://opendatacommunities.org/id/district-council/south-lakeland,43251,ICT Group,Central Services,http://opendatacommunities.org/def/concept/finance/sercop/objective/102,NORTHGATE PUBLIC SERVICES (UK) LTD,00968498,09-05-2018,0000076203,1275,0,Remote Information @ Work consultancy,271600,ICT Software Customised & Bespoke
South Lakeland District Council,http://opendatacommunities.org/id/district-council/south-lakeland,43251,Business Support Community Services,Central Services,http://opendatacommunities.org/def/concept/finance/sercop/objective/102,CUMBRIA COUNTY COUNCIL,,09-05-2018,0000076659,682,0,LAND CHARGE SEARCH ENQUIRIES COMMONS,908000,Public Bodies Council support services
South Lakeland District Council,http://opendatacommunities.org/id/district-council/south-lakeland,43251,Policy & Partnerships,Cultural Environmental Regulatory & Planning Services,http://opendatacommunities.org/def/concept/finance/sercop/objective/104,BREWERY ARTS CENTRE,,16-05-2018,0000076665,64000,0,Strategic Cultural Partnership grant,291000,Arts & Leisure Services Events
South Lakeland District Council,http://opendatacommunities.org/id/district-council/south-lakeland,43251,Lake Wardens,Cultural Environmental Regulatory & Planning Services,http://opendatacommunities.org/def/concept/finance/sercop/objective/104,CUMBRIA WASTE RECYCLING LTD,03162439,14-05-2018,0000076694,271.6,0,Emptying of Waste Bin at Ferry Nab  -,182012,Environment Waste Management Recycling
South Lakeland District Council,http://opendatacommunities.org/id/district-council/south-lakeland,43251,ICT Group,Central Services,http://opendatacommunities.org/def/concept/finance/sercop/objective/102,ITPS Professional Services Ltd (DD),,01-05-2018,0000076799,2316,0,Canal Head Depot - Main Connection,271700,ICT Telecommunications Fixed
South Lakeland District Council,http://opendatacommunities.org/id/district-council/south-lakeland,43251,Social Enterprise Admin,Cultural Environmental Regulatory & Planning Services,http://opendatacommunities.org/def/concept/finance/sercop/objective/104,NEWSQUEST MEDIA GROUP LTD,03102566,09-05-2018,0000076864,105.8,0,PUBLIC NOTICES FOR PLANNING 1 APRIL - 31,191000,Facilities Advertising
South Lakeland District Council,http://opendatacommunities.org/id/district-council/south-lakeland,43251,Business Support Community Services,Central Services,http://opendatacommunities.org/def/concept/finance/sercop/objective/102,GATES TRAVEL SERVICE,,14-05-2018,0000077025,118.2,0,GATES TRAVEL,261600,HR Travel & Subsistence
South Lakeland District Council,http://opendatacommunities.org/id/district-council/south-lakeland,43251,Business Support Community Services,Central Services,http://opendatacommunities.org/def/concept/finance/sercop/objective/102,ADECCO UK LIMITED,00593232,09-05-2018,0000077041,529.59,0,PAI Technician from 20/11/2017,261400,HR Temporary & Agency Staff
South Lakeland District Council,http://opendatacommunities.org/id/district-council/south-lakeland,43251,Business Support Community Services,Central Services,http://opendatacommunities.org/def/concept/finance/sercop/objective/102,ADECCO UK LIMITED,00593232,09-05-2018,0000077043,477.43,0,PAI Technician from 20/11/2017,261400,HR Temporary & Agency Staff
South Lakeland District Council,http://opendatacommunities.org/id/district-council/south-lakeland,43251,Leisure and Wellbeing,Culture and Related Serv,http://opendatacommunities.org/def/concept/finance/sercop/objective/104,HAGS-SMP Ltd,00908021,09-05-2018,0000077075,55000,0,To supply and install MUGA at Lightburn,331000,Sports Playground Equipment
South Lakeland District Council,http://opendatacommunities.org/id/district-council/south-lakeland,43251,Lake Wardens,Cultural Environmental Regulatory & Planning Services,http://opendatacommunities.org/def/concept/finance/sercop/objective/104,Medical Gas Solutions Ltd T/a,04967365,09-05-2018,0000077129,37.19,0,Monthly Rental of medical gas cylinders,221100,Health & Safety� Maintenance
South Lakeland District Council,http://opendatacommunities.org/id/district-council/south-lakeland,43251,Business Support Community Services,Housing Services,http://opendatacommunities.org/def/concept/finance/sercop/objective/108,BUNZL CLEANING & HYGIENE SUPPLIES,2902454,09-05-2018,0000077130,110.48,0,013051 Cleanworks plastic toilet brush,131011,Cleaning & Janitorial Cleaning Materials
South Lakeland District Council,http://opendatacommunities.org/id/district-council/south-lakeland,43251,Business Support Community Services,Housing Services,http://opendatacommunities.org/def/concept/finance/sercop/objective/108,BUNZL CLEANING & HYGIENE SUPPLIES,2902454,09-05-2018,0000077131,27.72,0,013051 Cleanworks plastic toilet brush,131011,Cleaning & Janitorial Cleaning Materials
South Lakeland District Council,http://opendatacommunities.org/id/district-council/south-lakeland,43251,Business Support Community Services,Internal Trading Accounts,,K & S Commercial Ltd,9068885,14-05-2018,0000077194,85.5,0,Recalibrate tachograph,381400,Vehicle Mgt Maintenance
South Lakeland District Council,http://opendatacommunities.org/id/district-council/south-lakeland,43251,Revenues and Benefits,Central Services,http://opendatacommunities.org/def/concept/finance/sercop/objective/102,VENN GROUP RECRUITMENT SOLUTIONS,,02-05-2018,0000077195,1078.8,0,Agency Staff - T H A756938,261400,HR Temporary & Agency Staff
South Lakeland District Council,http://opendatacommunities.org/id/district-council/south-lakeland,43251,Business Support Community Services,Internal Trading Accounts,,K S INTERNATIONAL LTD,02703321,14-05-2018,0000077206,115,0,Parts,381500,Vehicle Mgt Parts
South Lakeland District Council,http://opendatacommunities.org/id/district-council/south-lakeland,43251,Printing Section,Central Services,http://opendatacommunities.org/def/concept/finance/sercop/objective/102,TAALUS TECHNICAL SOLUTIONS LTD,07931407,09-05-2018,0000077212,20.41,0,A3 never Tear Paper for legal,279999,ICT Not Elsewhere Classified
South Lakeland District Council,http://opendatacommunities.org/id/district-council/south-lakeland,43251,Printing Section,External Trading Accounts,,TAALUS TECHNICAL SOLUTIONS LTD,07931407,09-05-2018,0000077212,219,0,A3 never Tear Paper for legal,279999,ICT Not Elsewhere Classified
South Lakeland District Council,http://opendatacommunities.org/id/district-council/south-lakeland,43251,Printing Section,Central Services,http://opendatacommunities.org/def/concept/finance/sercop/objective/102,TAALUS TECHNICAL SOLUTIONS LTD,07931407,09-05-2018,0000077213,49.95,0,A3 never Tear Paper for legal,279999,ICT Not Elsewhere Classified
South Lakeland District Council,http://opendatacommunities.org/id/district-council/south-lakeland,43251,Business Support Community Services,Internal Trading Accounts,,EK MOTOR FACTORS LTD,00838524,14-05-2018,0000077214,85,0,Parts,381400,Vehicle Mgt Maintenance
South Lakeland District Council,http://opendatacommunities.org/id/district-council/south-lakeland,43251,Business Support Community Services,Internal Trading Accounts,,EK MOTOR FACTORS LTD,00838524,14-05-2018,0000077215,10.2,0,Parts,381400,Vehicle Mgt Maintenance
South Lakeland District Council,http://opendatacommunities.org/id/district-council/south-lakeland,43251,Business Support Community Services,Internal Trading Accounts,,EK MOTOR FACTORS LTD,00838524,14-05-2018,0000077216,107.62,0,Parts,381400,Vehicle Mgt Maintenance
South Lakeland District Council,http://opendatacommunities.org/id/district-council/south-lakeland,43251,Business Support Community Services,Internal Trading Accounts,,HAKO MACHINES LIMITED,01414225,30-05-2018,0000077221,1.79,0,Parts,131000,Cleaning & Janitorial Cleaning Materials
South Lakeland District Council,http://opendatacommunities.org/id/district-council/south-lakeland,43251,Business Support Community Services,Internal Trading Accounts,,HAKO MACHINES LIMITED,01414225,30-05-2018,0000077221,77.15,0,Parts,131000,Cleaning & Janitorial Cleaning Materials
South Lakeland District Council,http://opendatacommunities.org/id/district-council/south-lakeland,43251,Kendal Town Hall,Central Services,http://opendatacommunities.org/def/concept/finance/sercop/objective/102,BERENDSEN UK LTD,00228604,09-05-2018,0000077222,125.8,0,Weekly cleaning and exchange of mats at,161000,Domestic Goods Commercial
South Lakeland District Council,http://opendatacommunities.org/id/district-council/south-lakeland,43251,Kendal Town Hall,Cultural Environmental Regulatory & Planning Services,http://opendatacommunities.org/def/concept/finance/sercop/objective/104,BERENDSEN UK LTD,00228604,09-05-2018,0000077222,30,0,Weekly cleaning and exchange of mats at,161000,Domestic Goods Commercial
South Lakeland District Council,http://opendatacommunities.org/id/district-council/south-lakeland,43251,Development Implementation,Central Services,http://opendatacommunities.org/def/concept/finance/sercop/objective/102,ADECCO UK LIMITED,00593232,14-05-2018,0000077223,255.2,0,Cleaner for SLDC - M P - April,261400,HR Temporary & Agency Staff
South Lakeland District Council,http://opendatacommunities.org/id/district-council/south-lakeland,43251,Business Support Community Services,Central Services,http://opendatacommunities.org/def/concept/finance/sercop/objective/102,ADECCO UK LIMITED,00593232,09-05-2018,0000077225,485.88,0,PAI Technician from 20/11/2017,261400,HR Temporary & Agency Staff
South Lakeland District Council,http://opendatacommunities.org/id/district-council/south-lakeland,43251,Development Implementation,Central Services,http://opendatacommunities.org/def/concept/finance/sercop/objective/102,ADECCO UK LIMITED,00593232,14-05-2018,0000077226,76.08,0,Cleaner for SLDC - S D - April 2018,261400,HR Temporary & Agency Staff
South Lakeland District Council,http://opendatacommunities.org/id/district-council/south-lakeland,43251,Business Support Community Services,Central Services,http://opendatacommunities.org/def/concept/finance/sercop/objective/102,ADECCO UK LIMITED,00593232,09-05-2018,0000077227,533.76,0,PAI Technician from 20/11/2017,261400,HR Temporary & Agency Staff
South Lakeland District Council,http://opendatacommunities.org/id/district-council/south-lakeland,43251,Business Support Community Services,Internal Trading Accounts,,VOLVO GROUP UK LTD,02190944,02-05-2018,0000077228,108.9,0,Parts,381000,Vehicle Mgt Commercial
South Lakeland District Council,http://opendatacommunities.org/id/district-council/south-lakeland,43251,Business Support Community Services,Internal Trading Accounts,,SOLWAY DAF,1393710,02-05-2018,0000077229,33.44,0,Parts,381000,Vehicle Mgt Commercial
South Lakeland District Council,http://opendatacommunities.org/id/district-council/south-lakeland,43251,Business Support Community Services,Cultural Environmental Regulatory & Planning Services,http://opendatacommunities.org/def/concept/finance/sercop/objective/104,BERENDSEN UK LTD,00228604,02-05-2018,0000077230,273.15,0,Workwear hire 01/04/18 - 31/03/19,161000,Domestic Goods Commercial
South Lakeland District Council,http://opendatacommunities.org/id/district-council/south-lakeland,43251,Social Enterprise Admin,Culture and Related Serv,http://opendatacommunities.org/def/concept/finance/sercop/objective/104,Bloom Procurement Services Ltd,,09-05-2018,0000077231,606,0,Millerground Enhancement Plan  and,151900,Consultancy Management
South Lakeland District Council,http://opendatacommunities.org/id/district-council/south-lakeland,43251,Electoral Services,Central Services,http://opendatacommunities.org/def/concept/finance/sercop/objective/102,ROYAL MAIL GROUP PLC,,02-05-2018,0000077232,127.07,0,Return postage 17/03/18 - 14/04/18,301200,Mail Services� Postage
South Lakeland District Council,http://opendatacommunities.org/id/district-council/south-lakeland,43251,ICT Group,Central Services,http://opendatacommunities.org/def/concept/finance/sercop/objective/102,IT PROFESSIONAL SERVICES (ITPS),,02-05-2018,0000077233,3153.96,0,VMware vSphere 6 Enterprise for 1,279999,ICT Not Elsewhere Classified
South Lakeland District Council,http://opendatacommunities.org/id/district-council/south-lakeland,43251,Business Support Community Services,Housing Services,http://opendatacommunities.org/def/concept/finance/sercop/objective/108,BUNZL CLEANING & HYGIENE SUPPLIES,2902454,02-05-2018,0000077236,10.34,0,013051 Cleanworks plastic toilet brush,131011,Cleaning & Janitorial Cleaning Materials
South Lakeland District Council,http://opendatacommunities.org/id/district-council/south-lakeland,43251,Revenues and Benefits,Central Services,http://opendatacommunities.org/def/concept/finance/sercop/objective/102,ROYAL MAIL GROUP PLC,,02-05-2018,0000077237,33.77,0,2018-19 Postal Charges a/c 0055114000,301200,Mail Services� Postage
South Lakeland District Council,http://opendatacommunities.org/id/district-council/south-lakeland,43251,Westmorland Centre Parking Office,Highways & Transport Services,http://opendatacommunities.org/def/concept/finance/sercop/objective/107,METRIC GROUP LIMITED,02560839,09-05-2018,0000077238,16290,0,3x sprite solar cashless chip/pin and,359999,Street & Traffic Not Elsewhere Classifie
South Lakeland District Council,http://opendatacommunities.org/id/district-council/south-lakeland,43251,Public Health and Licensing,Cultural Environmental Regulatory & Planning Services,http://opendatacommunities.org/def/concept/finance/sercop/objective/104,MOGO UK,03091301,14-05-2018,0000077239,1219.9,0,Hackney Carriage Door Sign Vinyl,281400,Legal Services Specialist Support
South Lakeland District Council,http://opendatacommunities.org/id/district-council/south-lakeland,43251,Business Support Community Services,SLDC as Agent,,CUMBRIA COUNTY COUNCIL,,02-05-2018,0000077241,-108,0,DBS Checks for Taxi Drivers,908000,Public Bodies Council support services
South Lakeland District Council,http://opendatacommunities.org/id/district-council/south-lakeland,43251,Business Support Community Services,SLDC as Agent,,CUMBRIA COUNTY COUNCIL,,02-05-2018,0000077242,810,0,DBS Charges fro Taxi Drivers,908000,Public Bodies Council support services
South Lakeland District Council,http://opendatacommunities.org/id/district-council/south-lakeland,43251,Business Support Community Services,SLDC as Agent,,CUMBRIA COUNTY COUNCIL,,02-05-2018,0000077243,54,0,DBS Checks for Taxi Drivers,908000,Public Bodies Council support services
South Lakeland District Council,http://opendatacommunities.org/id/district-council/south-lakeland,43251,Westmorland Centre Parking Office,Transport,http://opendatacommunities.org/def/concept/finance/sercop/objective/107,Inception Design,07951237,02-05-2018,0000077245,105,0,Kendal Snowsports Club car park,191100,Facilities Design & Photography
South Lakeland District Council,http://opendatacommunities.org/id/district-council/south-lakeland,43251,ICT Group,Central Services,http://opendatacommunities.org/def/concept/finance/sercop/objective/102,LAN2LAN Limited,,02-05-2018,0000077246,328,0,Fortinet FortiWifi 60D 8x5 maintenance,279999,ICT Not Elsewhere Classified
South Lakeland District Council,http://opendatacommunities.org/id/district-council/south-lakeland,43251,Development Implementation,Central Services,http://opendatacommunities.org/def/concept/finance/sercop/objective/102,GATES TRAVEL SERVICE,,02-05-2018,0000077250,217,0,Rail travel to LGA event in London on,261600,HR Travel & Subsistence
South Lakeland District Council,http://opendatacommunities.org/id/district-council/south-lakeland,43251,Lake Wardens,Cultural Environmental Regulatory & Planning Services,http://opendatacommunities.org/def/concept/finance/sercop/objective/104,THOMAS GRAHAM & SONS LTD,00656879,09-05-2018,0000077251,72.32,0,50 x M10 x 100 Cupsquare Galvanised,101400,Building General Materials
South Lakeland District Council,http://opendatacommunities.org/id/district-council/south-lakeland,43251,Development Implementation,Central Services,http://opendatacommunities.org/def/concept/finance/sercop/objective/102,THOMAS GRAHAM & SONS LTD,00656879,09-05-2018,0000077252,253.7,0,C Fold Paper Hand Towels Blue 1 ply x 4,101400,Building General Materials
South Lakeland District Council,http://opendatacommunities.org/id/district-council/south-lakeland,43251,Development Implementation,Central Services,http://opendatacommunities.org/def/concept/finance/sercop/objective/102,THOMAS GRAHAM & SONS LTD,00656879,09-05-2018,0000077253,224.2,0,Lemon Floor Gel 2 boxes of 2,101400,Building General Materials
South Lakeland District Council,http://opendatacommunities.org/id/district-council/south-lakeland,43251,Kendal Town Hall,Cultural Environmental Regulatory & Planning Services,http://opendatacommunities.org/def/concept/finance/sercop/objective/104,THOMAS GRAHAM & SONS LTD,00656879,02-05-2018,0000077254,30.06,0,2 x 5 litre handsoap with bactericide,101400,Building General Materials
South Lakeland District Council,http://opendatacommunities.org/id/district-council/south-lakeland,43251,Kendal Town Hall,Cultural Environmental Regulatory & Planning Services,http://opendatacommunities.org/def/concept/finance/sercop/objective/104,THOMAS GRAHAM & SONS LTD,00656879,02-05-2018,0000077254,10.5,0,2 x 5 litre handsoap with bactericide,101400,Building General Materials
South Lakeland District Council,http://opendatacommunities.org/id/district-council/south-lakeland,43251,Kendal Town Hall,Cultural Environmental Regulatory & Planning Services,http://opendatacommunities.org/def/concept/finance/sercop/objective/104,THOMAS GRAHAM & SONS LTD,00656879,02-05-2018,0000077255,190.56,0,2 x 12 acidic toilet cleaner code,101400,Building General Materials
South Lakeland District Council,http://opendatacommunities.org/id/district-council/south-lakeland,43251,Kendal Town Hall,External Trading Accounts,,THOMAS GRAHAM & SONS LTD,00656879,02-05-2018,0000077256,175.41,0,JANGRO AB101 OR SIMILAR,101400,Building General Materials
South Lakeland District Council,http://opendatacommunities.org/id/district-council/south-lakeland,43251,Kendal Town Hall,Cultural Environmental Regulatory & Planning Services,http://opendatacommunities.org/def/concept/finance/sercop/objective/104,THOMAS GRAHAM & SONS LTD,00656879,02-05-2018,0000077257,96.07,0,3 floor scapers for Kendal Town Hall,101400,Building General Materials
South Lakeland District Council,http://opendatacommunities.org/id/district-council/south-lakeland,43251,ICT Group,Central Services,http://opendatacommunities.org/def/concept/finance/sercop/objective/102,CCS MEDIA LTD,01693516,02-05-2018,0000077258,7494.15,0,15x hp laptops,271400,ICT Office & Reprographics Equipment
South Lakeland District Council,http://opendatacommunities.org/id/district-council/south-lakeland,43251,Printing Section,Central Services,http://opendatacommunities.org/def/concept/finance/sercop/objective/102,ROSEFOX PAPER LIMITED,01655083,02-05-2018,0000077259,1320,0,3 Pallets of Paper One A4 80gsm.,341000,Stationery Paper
South Lakeland District Council,http://opendatacommunities.org/id/district-council/south-lakeland,43251,Printing Section,Central Services,http://opendatacommunities.org/def/concept/finance/sercop/objective/102,ROSEFOX PAPER LIMITED,01655083,02-05-2018,0000077260,1320,0,3 Pallets of Paper One A4 80gsm.,341000,Stationery Paper
South Lakeland District Council,http://opendatacommunities.org/id/district-council/south-lakeland,43251,Printing Section,Central Services,http://opendatacommunities.org/def/concept/finance/sercop/objective/102,ROSEFOX PAPER LIMITED,01655083,02-05-2018,0000077261,1320,0,3 Pallets of Paper One A4 80gsm.,341000,Stationery Paper
South Lakeland District Council,http://opendatacommunities.org/id/district-council/south-lakeland,43251,Environment and Housing,Housing Services,http://opendatacommunities.org/def/concept/finance/sercop/objective/108,FIONA & JOHN ARMER,,02-05-2018,0000077266,410,0,"Monthly rent ,",250000,Housing
South Lakeland District Council,http://opendatacommunities.org/id/district-council/south-lakeland,43251,Development Implementation,Central Services,http://opendatacommunities.org/def/concept/finance/sercop/objective/102,DOTTED EYES LTD T/A MISO,06543990,09-05-2018,0000077267,396,0,Annual Renewal - Map Info (324) &,261500,HR Training & Conferences
South Lakeland District Council,http://opendatacommunities.org/id/district-council/south-lakeland,43251,Development Management,Cultural Environmental Regulatory & Planning Services,http://opendatacommunities.org/def/concept/finance/sercop/objective/104,CHRIS BOWKER LTD,01642561,09-05-2018,0000077268,30,0,Checking of electrical,101100,Building Electrical
South Lakeland District Council,http://opendatacommunities.org/id/district-council/south-lakeland,43251,Policy & Partnerships,Central Services,http://opendatacommunities.org/def/concept/finance/sercop/objective/102,Killington Marquees Ltd,,14-05-2018,0000077270,273.74,0,Table hire for the 2018 District,281100,Legal Services Election Services
South Lakeland District Council,http://opendatacommunities.org/id/district-council/south-lakeland,43251,Business Support Community Services,Cultural Environmental Regulatory & Planning Services,http://opendatacommunities.org/def/concept/finance/sercop/objective/104,CANNON HYGIENE LTD,01298292,09-05-2018,0000077271,2154.41,0,Clinical waste collections - 2018/19,131011,Cleaning & Janitorial Cleaning Materials
South Lakeland District Council,http://opendatacommunities.org/id/district-council/south-lakeland,43251,Business Support Community Services,Internal Trading Accounts,,DENNIS EAGLE LTD,03794455,09-05-2018,0000077272,32.2,0,Parts,381300,Vehicle Mgt Industrial
South Lakeland District Council,http://opendatacommunities.org/id/district-council/south-lakeland,43251,Business Support Community Services,Internal Trading Accounts,,CUMBRIA TRUCK CENTRE LTD,04298488,09-05-2018,0000077273,746.1,0,Rod push,381300,Vehicle Mgt Industrial
South Lakeland District Council,http://opendatacommunities.org/id/district-council/south-lakeland,43251,Business Support Community Services,Internal Trading Accounts,,CUMBRIA TRUCK CENTRE LTD,04298488,09-05-2018,0000077274,319.46,0,ABS sensor,381300,Vehicle Mgt Industrial
South Lakeland District Council,http://opendatacommunities.org/id/district-council/south-lakeland,43251,Business Support Community Services,Internal Trading Accounts,,S J Bargh,00532272,09-05-2018,0000077275,252.98,0,MOTs 2018/19 & vehicle cleaning,381400,Vehicle Mgt Maintenance
South Lakeland District Council,http://opendatacommunities.org/id/district-council/south-lakeland,43251,Business Support Community Services,Internal Trading Accounts,,BOC GASES,337663,09-05-2018,0000077276,749,0,Gas supplies 2018/19,371100,Utilities Gas
South Lakeland District Council,http://opendatacommunities.org/id/district-council/south-lakeland,43251,Business Support Community Services,Internal Trading Accounts,,EK MOTOR FACTORS LTD,00838524,09-05-2018,0000077277,53.94,0,Parts,381400,Vehicle Mgt Maintenance
South Lakeland District Council,http://opendatacommunities.org/id/district-council/south-lakeland,43251,Business Support Community Services,Internal Trading Accounts,,S J Bargh,00532272,09-05-2018,0000077278,230.98,0,MOTs 2018/19 & vehicle cleaning,381400,Vehicle Mgt Maintenance
South Lakeland District Council,http://opendatacommunities.org/id/district-council/south-lakeland,43251,Business Support Community Services,Internal Trading Accounts,,EK MOTOR FACTORS LTD,00838524,09-05-2018,0000077279,33.84,0,Parts,381400,Vehicle Mgt Maintenance
South Lakeland District Council,http://opendatacommunities.org/id/district-council/south-lakeland,43251,Business Support Community Services,Internal Trading Accounts,,S J Bargh,00532272,09-05-2018,0000077280,230.98,0,MOTs 2018/19 & vehicle cleaning,381400,Vehicle Mgt Maintenance
South Lakeland District Council,http://opendatacommunities.org/id/district-council/south-lakeland,43251,Business Support Community Services,Internal Trading Accounts,,HYDRAIR TRUCK & TRAILER PARTS LTD,,09-05-2018,0000077281,216,0,Parts,381500,Vehicle Mgt Parts
South Lakeland District Council,http://opendatacommunities.org/id/district-council/south-lakeland,43251,Business Support Community Services,Internal Trading Accounts,,Licence Bureau Ltd,04819897,09-05-2018,0000077282,69.9,0,Licence checks 2018/19,380000,Vehicle Management
South Lakeland District Council,http://opendatacommunities.org/id/district-council/south-lakeland,43251,Business Support Community Services,Internal Trading Accounts,,C M SIGNS,,09-05-2018,0000077283,32,0,SIgnage,102400,Building Signage
South Lakeland District Council,http://opendatacommunities.org/id/district-council/south-lakeland,43251,Business Support Community Services,Internal Trading Accounts,,EK MOTOR FACTORS LTD,00838524,09-05-2018,0000077284,330,0,Parts,381400,Vehicle Mgt Maintenance
South Lakeland District Council,http://opendatacommunities.org/id/district-council/south-lakeland,43251,Business Support Community Services,Internal Trading Accounts,,A & W COMMERCIALS LTD,02630625,09-05-2018,0000077285,167.57,0,Replace hose,381400,Vehicle Mgt Maintenance
South Lakeland District Council,http://opendatacommunities.org/id/district-council/south-lakeland,43251,Business Support Community Services,Internal Trading Accounts,,A & W COMMERCIALS LTD,02630625,09-05-2018,0000077286,76,0,Repair hose,381400,Vehicle Mgt Maintenance
South Lakeland District Council,http://opendatacommunities.org/id/district-council/south-lakeland,43251,Business Support Community Services,Internal Trading Accounts,,A & W COMMERCIALS LTD,02630625,09-05-2018,0000077287,76,0,Repair pump,381400,Vehicle Mgt Maintenance
South Lakeland District Council,http://opendatacommunities.org/id/district-council/south-lakeland,43251,Business Support Community Services,Internal Trading Accounts,,A & W COMMERCIALS LTD,02630625,09-05-2018,0000077288,76,0,Repair pump,381400,Vehicle Mgt Maintenance
South Lakeland District Council,http://opendatacommunities.org/id/district-council/south-lakeland,43251,Business Support Community Services,Internal Trading Accounts,,AINSWORTH'S GARAGE,,09-05-2018,0000077289,340,0,Call outs,381400,Vehicle Mgt Maintenance
South Lakeland District Council,http://opendatacommunities.org/id/district-council/south-lakeland,43251,Social Enterprise Admin,Highways & Transport Services,http://opendatacommunities.org/def/concept/finance/sercop/objective/107,GATES TRAVEL SERVICE,,14-05-2018,0000077290,111,0,Train journey from Oxenholme to London,261600,HR Travel & Subsistence
South Lakeland District Council,http://opendatacommunities.org/id/district-council/south-lakeland,43251,Democratic Services,Central Services,http://opendatacommunities.org/def/concept/finance/sercop/objective/102,RIVERBANK HOSPITALITY CATERING,,09-05-2018,0000077291,81,0,Buffet lunch - Planning Committee,111000,Catering Banquet & Catering
South Lakeland District Council,http://opendatacommunities.org/id/district-council/south-lakeland,43251,Business Support Community Services,Housing Services,http://opendatacommunities.org/def/concept/finance/sercop/objective/108,James Andrews Recruitment Solutions,06834852,09-05-2018,0000077292,967.04,0,Payment for J H,261400,HR Temporary & Agency Staff
South Lakeland District Council,http://opendatacommunities.org/id/district-council/south-lakeland,43251,Environment and Housing,Housing Services,http://opendatacommunities.org/def/concept/finance/sercop/objective/108,James Andrews Recruitment Solutions,06834852,09-05-2018,0000077293,678,0,Payment for S P,261400,HR Temporary & Agency Staff
South Lakeland District Council,http://opendatacommunities.org/id/district-council/south-lakeland,43251,Environment and Housing,Housing Services,http://opendatacommunities.org/def/concept/finance/sercop/objective/108,James Andrews Recruitment Solutions,06834852,09-05-2018,0000077293,678,0,Payment for S P,261400,HR Temporary & Agency Staff
South Lakeland District Council,http://opendatacommunities.org/id/district-council/south-lakeland,43251,Business Support Community Services,Housing Services,http://opendatacommunities.org/def/concept/finance/sercop/objective/108,AMF Property,,09-05-2018,0000077294,800,0,Deposit,250010,Housing Letting Agents
South Lakeland District Council,http://opendatacommunities.org/id/district-council/south-lakeland,43251,Social Enterprise Admin,Cultural Environmental Regulatory & Planning Services,http://opendatacommunities.org/def/concept/finance/sercop/objective/104,NEWSQUEST MEDIA GROUP LTD,03102566,09-05-2018,0000077295,169.28,0,PUBLIC NOTICES FOR PLANNING 1 APRIL - 31,191000,Facilities Advertising
South Lakeland District Council,http://opendatacommunities.org/id/district-council/south-lakeland,43251,Social Enterprise Admin,Cultural Environmental Regulatory & Planning Services,http://opendatacommunities.org/def/concept/finance/sercop/objective/104,NEWSQUEST MEDIA GROUP LTD,03102566,09-05-2018,0000077296,253.92,0,PUBLIC NOTICES FOR PLANNING 1 APRIL - 31,191000,Facilities Advertising
South Lakeland District Council,http://opendatacommunities.org/id/district-council/south-lakeland,43251,Printing Section,Central Services,http://opendatacommunities.org/def/concept/finance/sercop/objective/102,GANDLAKE TECHNOLOGY LTD,,09-05-2018,0000077298,2330.61,0,Gandlake Rental for 2018/19,271440,ICT Software
South Lakeland District Council,http://opendatacommunities.org/id/district-council/south-lakeland,43251,Printing Section,Central Services,http://opendatacommunities.org/def/concept/finance/sercop/objective/102,Konica Minolta Bus Solutions (UK) Ltd,,09-05-2018,0000077299,40.41,0,Rental and Click Charges for all Konica,192000,Facilities Reprographics
South Lakeland District Council,http://opendatacommunities.org/id/district-council/south-lakeland,43251,Business Support Community Services,Internal Trading Accounts,,COMPASS COMPONENTS,,09-05-2018,0000077300,133.77,0,Consumables 2018/19,101400,Building General Materials
South Lakeland District Council,http://opendatacommunities.org/id/district-council/south-lakeland,43251,Financial Services,SLDC as Agent,,Zurich Municipal (BACS),BR7985,09-05-2018,0000077302,450374.78,0,2018/19 Insurance costs,201800,Financial Services Insurance
South Lakeland District Council,http://opendatacommunities.org/id/district-council/south-lakeland,43251,Financial Services,SLDC as Agent,,Zurich Municipal (BACS),BR7985,09-05-2018,0000077303,15346.54,0,2018/19 Insurance costs,201800,Financial Services Insurance
South Lakeland District Council,http://opendatacommunities.org/id/district-council/south-lakeland,43251,Financial Services,SLDC as Agent,,Zurich Municipal (BACS),BR7985,09-05-2018,0000077304,955.08,0,2018/19 Insurance costs,201800,Financial Services Insurance
South Lakeland District Council,http://opendatacommunities.org/id/district-council/south-lakeland,43251,Financial Services,SLDC as Agent,,Zurich Municipal (BACS),BR7985,09-05-2018,0000077305,8304.39,0,2018/19 Insurance costs,201800,Financial Services Insurance
South Lakeland District Council,http://opendatacommunities.org/id/district-council/south-lakeland,43251,Financial Services,SLDC as Agent,,Zurich Municipal (BACS),BR7985,09-05-2018,0000077306,1629.42,0,2018/19 Insurance costs,201800,Financial Services Insurance
South Lakeland District Council,http://opendatacommunities.org/id/district-council/south-lakeland,43251,Financial Services,SLDC as Agent,,Zurich Municipal (BACS),BR7985,09-05-2018,0000077307,28110,0,2018/19 Insurance costs,201800,Financial Services Insurance
South Lakeland District Council,http://opendatacommunities.org/id/district-council/south-lakeland,43251,ICT Group,Central Services,http://opendatacommunities.org/def/concept/finance/sercop/objective/102,SYMANTEC.CLOUD,,09-05-2018,0000077308,2310,0,21210892 Symc email protect cloud per,271600,ICT Software Customised & Bespoke
South Lakeland District Council,http://opendatacommunities.org/id/district-council/south-lakeland,43251,ICT Group,Central Services,http://opendatacommunities.org/def/concept/finance/sercop/objective/102,BRITISH TELECOMMUNICATIONS PLC (DD),,01-05-2018,0000077309,-72.02,0,"NPS Circuit ANUK529077, Covers 1/4/16 to",279999,ICT Not Elsewhere Classified
South Lakeland District Council,http://opendatacommunities.org/id/district-council/south-lakeland,43251,Business Support Community Services,Cultural Environmental Regulatory & Planning Services,http://opendatacommunities.org/def/concept/finance/sercop/objective/104,Jon Etchells Consulting Ltd,4884334,09-05-2018,0000077311,5632.92,0,J E Consulting Ltd,152050,Consultancy Property
South Lakeland District Council,http://opendatacommunities.org/id/district-council/south-lakeland,43251,Social Enterprise Admin,Highways & Transport Services,http://opendatacommunities.org/def/concept/finance/sercop/objective/107,ALLSTAR BUSINESS SOLUTIONS LTD (NCR),2631112,01-05-2018,0000077312,132.91,0,Fuel for CEO vans up to 31 March 2019,381600,Vehicle Mgt Leasing
South Lakeland District Council,http://opendatacommunities.org/id/district-council/south-lakeland,43251,Social Enterprise Admin,Highways & Transport Services,http://opendatacommunities.org/def/concept/finance/sercop/objective/107,ALLSTAR BUSINESS SOLUTIONS LTD (NCR),2631112,01-05-2018,0000077312,215.19,0,Fuel for CEO vans up to 31 March 2019,381600,Vehicle Mgt Leasing
South Lakeland District Council,http://opendatacommunities.org/id/district-council/south-lakeland,43251,Social Enterprise Admin,Cultural Environmental Regulatory & Planning Services,http://opendatacommunities.org/def/concept/finance/sercop/objective/104,ALLSTAR BUSINESS SOLUTIONS LTD (NCR),2631112,01-05-2018,0000077312,84.71,0,Fuel for CEO vans up to 31 March 2019,381600,Vehicle Mgt Leasing
South Lakeland District Council,http://opendatacommunities.org/id/district-council/south-lakeland,43251,Social Enterprise Admin,Highways & Transport Services,http://opendatacommunities.org/def/concept/finance/sercop/objective/107,DIXON PRINTING CO LTD,,09-05-2018,0000077315,114,0,Please supply 1000 DL envelopes with,191600,Facilities Printing
South Lakeland District Council,http://opendatacommunities.org/id/district-council/south-lakeland,43251,Printing Section,Central Services,http://opendatacommunities.org/def/concept/finance/sercop/objective/102,STANDING STONE DRAWING OFFICE SUPPLIES,05128817,09-05-2018,0000077316,363.83,0,Grey ink,341100,Stationery Sundries
South Lakeland District Council,http://opendatacommunities.org/id/district-council/south-lakeland,43251,Social Enterprise Admin,Highways & Transport Services,http://opendatacommunities.org/def/concept/finance/sercop/objective/107,METRIC GROUP LIMITED,02560839,09-05-2018,0000077317,693,0,Web hosting and web tariff editor for,359999,Street & Traffic Not Elsewhere Classifie
South Lakeland District Council,http://opendatacommunities.org/id/district-council/south-lakeland,43251,Development Strategy,Cultural Environmental Regulatory & Planning Services,http://opendatacommunities.org/def/concept/finance/sercop/objective/104,TRILITHON LTD,03390011,09-05-2018,0000077318,300,0,P M to prepare the LDF databse,271515,ICT Website Development
South Lakeland District Council,http://opendatacommunities.org/id/district-council/south-lakeland,43251,Leisure and Wellbeing,Cultural Environmental Regulatory & Planning Services,http://opendatacommunities.org/def/concept/finance/sercop/objective/104,ALLSTAR BUSINESS SOLUTIONS LTD (NCR),2631112,01-05-2018,0000077319,84.33,0,Parks fuel for April 2018 - March 2019,381600,Vehicle Mgt Leasing
South Lakeland District Council,http://opendatacommunities.org/id/district-council/south-lakeland,43251,Financial Services,Central Services,http://opendatacommunities.org/def/concept/finance/sercop/objective/102,NORTH WEST INSURANCE OFFICERS GROUP,,09-05-2018,0000077320,50,0,NWIOG Subs 2018,201800,Financial Services Insurance
South Lakeland District Council,http://opendatacommunities.org/id/district-council/south-lakeland,43251,Printing Section,Central Services,http://opendatacommunities.org/def/concept/finance/sercop/objective/102,Konica Minolta Bus Solutions (UK) Ltd,,09-05-2018,0000077321,3780.69,0,Rental and Click Charges for all Konica,192000,Facilities Reprographics
South Lakeland District Council,http://opendatacommunities.org/id/district-council/south-lakeland,43251,Development Implementation,Cultural Environmental Regulatory & Planning Services,http://opendatacommunities.org/def/concept/finance/sercop/objective/104,Springboard Research Ltd,,09-05-2018,0000077322,3570,0,Footfall/Benchmarking for Kendal Town,191500,Facilities Market Research
South Lakeland District Council,http://opendatacommunities.org/id/district-council/south-lakeland,43251,Human Resources,Central Services,http://opendatacommunities.org/def/concept/finance/sercop/objective/102,Waterfront Solicitors LLP,,09-05-2018,0000077323,250,0,Settlement agreement - legal fees of ee,280000,Legal Services
South Lakeland District Council,http://opendatacommunities.org/id/district-council/south-lakeland,43251,Public Health and Licensing,Central Services,http://opendatacommunities.org/def/concept/finance/sercop/objective/102,NORTHGATE VEHICLE HIRE LTD,01434157,16-05-2018,0000077324,64,0,Vehicle hire for licencing course 25th,381600,Vehicle Mgt Leasing
South Lakeland District Council,http://opendatacommunities.org/id/district-council/south-lakeland,43251,Business Support Community Services,Cultural Environmental Regulatory & Planning Services,http://opendatacommunities.org/def/concept/finance/sercop/objective/104,NORTHGATE VEHICLE HIRE LTD,01434157,09-05-2018,0000077325,23,0,Van for EP Drainage -,381600,Vehicle Mgt Leasing
South Lakeland District Council,http://opendatacommunities.org/id/district-council/south-lakeland,43251,ICT Group,Central Services,http://opendatacommunities.org/def/concept/finance/sercop/objective/102,EE UK LTD (NCR),,01-05-2018,0000077326,45.03,0,"Car Park SIMS, covers 2018/19",351000,Street & Traffic Parking Car Parks
South Lakeland District Council,http://opendatacommunities.org/id/district-council/south-lakeland,43251,ICT Group,Highways & Transport Services,http://opendatacommunities.org/def/concept/finance/sercop/objective/107,EE UK LTD (NCR),,01-05-2018,0000077326,140,0,"Car Park SIMS, covers 2018/19",351000,Street & Traffic Parking Car Parks
South Lakeland District Council,http://opendatacommunities.org/id/district-council/south-lakeland,43251,ICT Group,Central Services,http://opendatacommunities.org/def/concept/finance/sercop/objective/102,EE UK LTD (NCR),,01-05-2018,0000077326,57.25,0,"Car Park SIMS, covers 2018/19",351000,Street & Traffic Parking Car Parks
South Lakeland District Council,http://opendatacommunities.org/id/district-council/south-lakeland,43251,Development Implementation,Cultural Environmental Regulatory & Planning Services,http://opendatacommunities.org/def/concept/finance/sercop/objective/104,Trafalgar Public Relations Ltd,,09-05-2018,0000077327,2000,0,PR & Marketing Support for Invest in,150000,Consultancy
South Lakeland District Council,http://opendatacommunities.org/id/district-council/south-lakeland,43251,Business Support Community Services,Cultural Environmental Regulatory & Planning Services,http://opendatacommunities.org/def/concept/finance/sercop/objective/104,ROYAL TOWN PLANNING INSTITUTE,,09-05-2018,0000077328,1520,0,RTPI TRAINING FOR OFFICERS,908999,Public Bodies Not Elsewhere Classified
South Lakeland District Council,http://opendatacommunities.org/id/district-council/south-lakeland,43251,Development Implementation,Central Services,http://opendatacommunities.org/def/concept/finance/sercop/objective/102,THE TECHNOLOGY FORGE,06834254,09-05-2018,0000077329,9734,0,Facility Support & Maintenance Renewal,271600,ICT Software Customised & Bespoke
South Lakeland District Council,http://opendatacommunities.org/id/district-council/south-lakeland,43251,Cemeteries Office,Cultural Environmental Regulatory & Planning Services,http://opendatacommunities.org/def/concept/finance/sercop/objective/104,PARKIN & JACKSON LTD,08282892,09-05-2018,0000077330,115,0,Refix to make safe old H/st,121000,Cemetery & Crematorium Burial & Crem
South Lakeland District Council,http://opendatacommunities.org/id/district-council/south-lakeland,43251,Business Support Community Services,Housing Services,http://opendatacommunities.org/def/concept/finance/sercop/objective/108,The County Hotel,01815672,09-05-2018,0000077332,187.51,0,Accommodation for,250000,Housing
South Lakeland District Council,http://opendatacommunities.org/id/district-council/south-lakeland,43251,Lake Wardens,Cultural Environmental Regulatory & Planning Services,http://opendatacommunities.org/def/concept/finance/sercop/objective/104,WINDERMERE LAKE CRUISES LTD,00929280,09-05-2018,0000077334,1200,0,Annual Safety Inspection of Bark Barn &,291000,Arts & Leisure Services Events
South Lakeland District Council,http://opendatacommunities.org/id/district-council/south-lakeland,43251,Leisure and Wellbeing,Cultural Environmental Regulatory & Planning Services,http://opendatacommunities.org/def/concept/finance/sercop/objective/104,Bergen Arbortech,,09-05-2018,0000077335,1255,0,Clear storm damaged sycamore in Nobles,241210,Horticultural Tree Trimming
South Lakeland District Council,http://opendatacommunities.org/id/district-council/south-lakeland,43251,Environment and Housing,Housing Services,http://opendatacommunities.org/def/concept/finance/sercop/objective/108,My Dream Cleaners Ltd,09839482,09-05-2018,0000077336,1025.5,0,Cleaning at TVF Hostel,131320,Cleaning & Janitorial Cleaning Service
South Lakeland District Council,http://opendatacommunities.org/id/district-council/south-lakeland,43251,Business Support Community Services,Internal Trading Accounts,,K S INTERNATIONAL LTD,02703321,09-05-2018,0000077337,100,0,Parts,381500,Vehicle Mgt Parts
South Lakeland District Council,http://opendatacommunities.org/id/district-council/south-lakeland,43251,Business Support Community Services,Cultural Environmental Regulatory & Planning Services,http://opendatacommunities.org/def/concept/finance/sercop/objective/104,PENNINGTONS (KENDAL) LIMITED,00434649,09-05-2018,0000077338,2000,0,Annual Charge for use of Link Road at,182013,Environment Waste Mgt Waste Collection
South Lakeland District Council,http://opendatacommunities.org/id/district-council/south-lakeland,43251,Business Support Community Services,Internal Trading Accounts,,M G D LTD,,09-05-2018,0000077339,35,0,MOTs 2018/19,381400,Vehicle Mgt Maintenance
South Lakeland District Council,http://opendatacommunities.org/id/district-council/south-lakeland,43251,Business Support Community Services,Central Services,http://opendatacommunities.org/def/concept/finance/sercop/objective/102,FAUN ZOELLER (UK) LTD,00751804,09-05-2018,0000077340,115804.7,0,Road sweeping vehicle,381400,Vehicle Mgt Maintenance
South Lakeland District Council,http://opendatacommunities.org/id/district-council/south-lakeland,43251,Business Support Community Services,Internal Trading Accounts,,ARCO LIMITED,00133804,09-05-2018,0000077341,33.82,0,Shoes,141100,Clothing Protective
South Lakeland District Council,http://opendatacommunities.org/id/district-council/south-lakeland,43251,Business Support Community Services,Cultural Environmental Regulatory & Planning Services,http://opendatacommunities.org/def/concept/finance/sercop/objective/104,Enevo UK Ltd,9347391,09-05-2018,0000077342,416,0,Monthly subscriptions 2018/19,261517,ICT-Consultancy
South Lakeland District Council,http://opendatacommunities.org/id/district-council/south-lakeland,43251,Business Support Community Services,Internal Trading Accounts,,Verizon Connect UK Ltd,05265904,09-05-2018,0000077343,32,0,Annual fee for 70 vehicles from 01/06/18,361000,Public Transport Fleet Management
South Lakeland District Council,http://opendatacommunities.org/id/district-council/south-lakeland,43251,Business Support Community Services,Internal Trading Accounts,,S J Bargh,00532272,09-05-2018,0000077344,65,0,MOTs 2018/19 & vehicle cleaning,381400,Vehicle Mgt Maintenance
South Lakeland District Council,http://opendatacommunities.org/id/district-council/south-lakeland,43251,Business Support Community Services,Internal Trading Accounts,,S J Bargh,00532272,09-05-2018,0000077345,230.98,0,MOTs 2018/19 & vehicle cleaning,381400,Vehicle Mgt Maintenance
South Lakeland District Council,http://opendatacommunities.org/id/district-council/south-lakeland,43251,Business Support Community Services,Internal Trading Accounts,,SOLWAY DAF,1393710,09-05-2018,0000077346,24.51,0,Parts,381000,Vehicle Mgt Commercial
South Lakeland District Council,http://opendatacommunities.org/id/district-council/south-lakeland,43251,Business Support Community Services,Cultural Environmental Regulatory & Planning Services,http://opendatacommunities.org/def/concept/finance/sercop/objective/104,Masterstaff Limited,02777593,09-05-2018,0000077347,5092.2,0,Agency staff,261300,HR Recruitment & Assessment
South Lakeland District Council,http://opendatacommunities.org/id/district-council/south-lakeland,43251,Business Support Community Services,Cultural Environmental Regulatory & Planning Services,http://opendatacommunities.org/def/concept/finance/sercop/objective/104,ALLSTAR BUSINESS SOLUTIONS LTD (NCR),2631112,01-05-2018,0000077348,5642.5,0,Fuel to 30/04/18,381600,Vehicle Mgt Leasing
South Lakeland District Council,http://opendatacommunities.org/id/district-council/south-lakeland,43251,Business Support Community Services,Internal Trading Accounts,,ALLSTAR BUSINESS SOLUTIONS LTD (NCR),2631112,01-05-2018,0000077348,491.65,0,Fuel to 30/04/18,381600,Vehicle Mgt Leasing
South Lakeland District Council,http://opendatacommunities.org/id/district-council/south-lakeland,43251,Business Support Community Services,Cultural Environmental Regulatory & Planning Services,http://opendatacommunities.org/def/concept/finance/sercop/objective/104,ALLSTAR BUSINESS SOLUTIONS LTD (NCR),2631112,01-05-2018,0000077348,13570.71,0,Fuel to 30/04/18,381600,Vehicle Mgt Leasing
South Lakeland District Council,http://opendatacommunities.org/id/district-council/south-lakeland,43251,Business Support Community Services,Internal Trading Accounts,,Romaquip UK,,09-05-2018,0000077349,675.74,0,Curtains,381000,Vehicle Mgt Commercial
South Lakeland District Council,http://opendatacommunities.org/id/district-council/south-lakeland,43251,Business Support Community Services,Internal Trading Accounts,,Romaquip UK,,09-05-2018,0000077350,164.88,0,Switch,381000,Vehicle Mgt Commercial
South Lakeland District Council,http://opendatacommunities.org/id/district-council/south-lakeland,43251,Business Support Community Services,Internal Trading Accounts,,AINSWORTH'S GARAGE,,09-05-2018,0000077351,270,0,Call outs,381400,Vehicle Mgt Maintenance
South Lakeland District Council,http://opendatacommunities.org/id/district-council/south-lakeland,43251,Business Support Community Services,Internal Trading Accounts,,K S INTERNATIONAL LTD,02703321,09-05-2018,0000077352,70,0,Parts,381500,Vehicle Mgt Parts
South Lakeland District Council,http://opendatacommunities.org/id/district-council/south-lakeland,43251,Business Support Community Services,Internal Trading Accounts,,K S INTERNATIONAL LTD,02703321,09-05-2018,0000077352,5,0,Parts,381500,Vehicle Mgt Parts
South Lakeland District Council,http://opendatacommunities.org/id/district-council/south-lakeland,43251,Business Support Community Services,Internal Trading Accounts,,S J Bargh,00532272,09-05-2018,0000077353,252.98,0,MOTs 2018/19 & vehicle cleaning,381400,Vehicle Mgt Maintenance
South Lakeland District Council,http://opendatacommunities.org/id/district-council/south-lakeland,43251,Business Support Community Services,Internal Trading Accounts,,EK MOTOR FACTORS LTD,00838524,09-05-2018,0000077354,91.86,0,Parts,381400,Vehicle Mgt Maintenance
South Lakeland District Council,http://opendatacommunities.org/id/district-council/south-lakeland,43251,Business Support Community Services,Internal Trading Accounts,,EK MOTOR FACTORS LTD,00838524,09-05-2018,0000077355,-5.97,0,Parts,381400,Vehicle Mgt Maintenance
South Lakeland District Council,http://opendatacommunities.org/id/district-council/south-lakeland,43251,Business Support Community Services,Internal Trading Accounts,,LANCASTER TRAINING SERVICES LTD,01447612,09-05-2018,0000077356,50,0,Training 2018/19 (GWK),261500,HR Training & Conferences
South Lakeland District Council,http://opendatacommunities.org/id/district-council/south-lakeland,43251,Environment and Housing,Housing Services,http://opendatacommunities.org/def/concept/finance/sercop/objective/108,Vigilant Security Services UK Ltd,05914271,09-05-2018,0000077357,2782.08,0,Secruity guard at TVF Hostel,192213,Facilities Security Manned Guarding
South Lakeland District Council,http://opendatacommunities.org/id/district-council/south-lakeland,43251,Business Support Community Services,Housing Services,http://opendatacommunities.org/def/concept/finance/sercop/objective/108,GATES TRAVEL SERVICE,,09-05-2018,0000077358,17.9,0,Travel Warrant Kendal to Carlisle,261600,HR Travel & Subsistence
South Lakeland District Council,http://opendatacommunities.org/id/district-council/south-lakeland,43251,Kendal Town Hall,Central Services,http://opendatacommunities.org/def/concept/finance/sercop/objective/102,LTT VENDING GROUP LTD,03021756,09-05-2018,0000077359,618.66,0,Rich Roast Sachets - Per Box,111400,Catering Vending Machines & Dispensers
South Lakeland District Council,http://opendatacommunities.org/id/district-council/south-lakeland,43251,Development Implementation,Cultural Environmental Regulatory & Planning Services,http://opendatacommunities.org/def/concept/finance/sercop/objective/104,Bloom Procurement Services Ltd,,09-05-2018,0000077360,1417.5,0,"Allhallows Church, Kendal - RG Parkins",151900,Consultancy Management
South Lakeland District Council,http://opendatacommunities.org/id/district-council/south-lakeland,43251,Business Support Community Services,Central Services,http://opendatacommunities.org/def/concept/finance/sercop/objective/102,ADECCO UK LIMITED,00593232,09-05-2018,0000077361,521.25,0,PAI Technician from 20/11/2017,261400,HR Temporary & Agency Staff
South Lakeland District Council,http://opendatacommunities.org/id/district-council/south-lakeland,43251,Policy & Partnerships,Central Services,http://opendatacommunities.org/def/concept/finance/sercop/objective/102,ADECCO UK LIMITED,00593232,23-05-2018,0000077362,446.94,0,Temporary L&D Advisor supporting,261400,HR Temporary & Agency Staff
South Lakeland District Council,http://opendatacommunities.org/id/district-council/south-lakeland,43251,Business Support Community Services,Central Services,http://opendatacommunities.org/def/concept/finance/sercop/objective/102,ADECCO UK LIMITED,00593232,09-05-2018,0000077363,380.25,0,PAI Technician from 20/11/2017,261400,HR Temporary & Agency Staff
South Lakeland District Council,http://opendatacommunities.org/id/district-council/south-lakeland,43251,Business Support Community Services,Cultural Environmental Regulatory & Planning Services,http://opendatacommunities.org/def/concept/finance/sercop/objective/104,MILNTHORPE KENNELS & CATTERY,08932302,09-05-2018,0000077364,126.77,0,Vets fees 2018/19,181500,Environment Animal Services
South Lakeland District Council,http://opendatacommunities.org/id/district-council/south-lakeland,43251,Business Support Community Services,Cultural Environmental Regulatory & Planning Services,http://opendatacommunities.org/def/concept/finance/sercop/objective/104,MILNTHORPE KENNELS & CATTERY,08932302,09-05-2018,0000077365,2699.72,0,Stray dog kenneling fees 2018/19,181500,Environment Animal Services
South Lakeland District Council,http://opendatacommunities.org/id/district-council/south-lakeland,43251,Environment and Housing,Housing Services,http://opendatacommunities.org/def/concept/finance/sercop/objective/108,Raymond Bryning,,09-05-2018,0000077367,400,0,Monthly rent for 7 Yard 89,250000,Housing
South Lakeland District Council,http://opendatacommunities.org/id/district-council/south-lakeland,43251,Customer Services,Central Services,http://opendatacommunities.org/def/concept/finance/sercop/objective/102,SHRED-IT,04047194,16-05-2018,0000077368,204.88,0,REMOVAL OF CONFIDENTIAL WASTE,279999,ICT Not Elsewhere Classified
South Lakeland District Council,http://opendatacommunities.org/id/district-council/south-lakeland,43251,Community & Housing Group,Housing Services,http://opendatacommunities.org/def/concept/finance/sercop/objective/108,GROWING CONCERNS LTD,,09-05-2018,0000077369,1091.99,0,For Handy Person Service 2018/19,391200,Construction Engineering
South Lakeland District Council,http://opendatacommunities.org/id/district-council/south-lakeland,43251,Business Support Community Services,Internal Trading Accounts,,TECHNIJET LTD,02776601,09-05-2018,0000077371,201.36,0,Service & repair pressure washers,139999,Cleaning & Janitorial Not Elsewhere Clas
South Lakeland District Council,http://opendatacommunities.org/id/district-council/south-lakeland,43251,Business Support Community Services,Internal Trading Accounts,,TECHNIJET LTD,02776601,09-05-2018,0000077372,75.4,0,Service & repair pressure washers,139999,Cleaning & Janitorial Not Elsewhere Clas
South Lakeland District Council,http://opendatacommunities.org/id/district-council/south-lakeland,43251,Business Support Community Services,Cultural Environmental Regulatory & Planning Services,http://opendatacommunities.org/def/concept/finance/sercop/objective/104,TECHNIJET LTD,02776601,09-05-2018,0000077373,695,0,Adapator & nozzles,139999,Cleaning & Janitorial Not Elsewhere Clas
South Lakeland District Council,http://opendatacommunities.org/id/district-council/south-lakeland,43251,Social Enterprise Admin,Cultural Environmental Regulatory & Planning Services,http://opendatacommunities.org/def/concept/finance/sercop/objective/104,NEWSQUEST MEDIA GROUP LTD,03102566,09-05-2018,0000077374,211.6,0,PUBLIC NOTICES FOR PLANNING 1 APRIL - 31,191000,Facilities Advertising
South Lakeland District Council,http://opendatacommunities.org/id/district-council/south-lakeland,43251,Social Enterprise Admin,Cultural Environmental Regulatory & Planning Services,http://opendatacommunities.org/def/concept/finance/sercop/objective/104,FURNESS NEWSPAPERS LTD,01155841,09-05-2018,0000077375,86.56,0,PUBLIC NOTICES FOR PLANNING 1 APRIL 2015,191000,Facilities Advertising
South Lakeland District Council,http://opendatacommunities.org/id/district-council/south-lakeland,43251,Development Implementation,Cultural Environmental Regulatory & Planning Services,http://opendatacommunities.org/def/concept/finance/sercop/objective/104,CUMBRIAN NEWSPAPERS LIMITED,00002729,09-05-2018,0000077376,300,0,12 Months Advertising in InCumbria,191000,Facilities Advertising
South Lakeland District Council,http://opendatacommunities.org/id/district-council/south-lakeland,43251,Revenues and Benefits,SLDC as Agent,,ROYAL MAIL GROUP PLC,,09-05-2018,0000077377,2070.5,0,2018-19 Postal Charges a/c 0198123013,301200,Mail Services� Postage
South Lakeland District Council,http://opendatacommunities.org/id/district-council/south-lakeland,43251,Revenues and Benefits,Central Services,http://opendatacommunities.org/def/concept/finance/sercop/objective/102,JACOBS,,09-05-2018,0000077381,75,0,2018-19 Vat Only,152200,Consultancy Technical & Feasibility
South Lakeland District Council,http://opendatacommunities.org/id/district-council/south-lakeland,43251,Printing Section,Central Services,http://opendatacommunities.org/def/concept/finance/sercop/objective/102,Konica Minolta Bus Solutions (UK) Ltd,,16-05-2018,0000077384,2682.41,0,Clicks for Office Printers Jan - March,192000,Facilities Reprographics
South Lakeland District Council,http://opendatacommunities.org/id/district-council/south-lakeland,43251,Development Implementation,Central Services,http://opendatacommunities.org/def/concept/finance/sercop/objective/102,LAMBERT SMITH HAMPTON GROUP,2521225,09-05-2018,0000077385,5562.5,0,Markets review,999999,Unclassifiable
South Lakeland District Council,http://opendatacommunities.org/id/district-council/south-lakeland,43251,Business Support Community Services,Cultural Environmental Regulatory & Planning Services,http://opendatacommunities.org/def/concept/finance/sercop/objective/104,ALLSTAR BUSINESS SOLUTIONS LTD (NCR),2631112,01-05-2018,0000077386,30.9,0,Fuel - Private Water Van - 18 April 2018,381600,Vehicle Mgt Leasing
South Lakeland District Council,http://opendatacommunities.org/id/district-council/south-lakeland,43251,ICT Group,Central Services,http://opendatacommunities.org/def/concept/finance/sercop/objective/102,Insight Direct (Uk) Ltd,2579852,14-05-2018,0000077387,1223.4,0,0007034092 iPad Wifi 32Gb Space Grey,271200,ICT Hardware
South Lakeland District Council,http://opendatacommunities.org/id/district-council/south-lakeland,43251,ICT Group,Central Services,http://opendatacommunities.org/def/concept/finance/sercop/objective/102,Insight Direct (Uk) Ltd,2579852,14-05-2018,0000077388,367.6,0,0007034092 iPad Wifi 32Gb Space Grey,271200,ICT Hardware
South Lakeland District Council,http://opendatacommunities.org/id/district-council/south-lakeland,43251,Lake Wardens,Cultural Environmental Regulatory & Planning Services,http://opendatacommunities.org/def/concept/finance/sercop/objective/104,SMS (SALCOMBE) LTD,04558962,09-05-2018,0000077392,189.99,0,1 x  Endcover,381500,Vehicle Mgt Parts
South Lakeland District Council,http://opendatacommunities.org/id/district-council/south-lakeland,43251,Westmorland Centre Parking Office,Highways & Transport Services,http://opendatacommunities.org/def/concept/finance/sercop/objective/107,CAPITA BUSINESS SERVICES LTD,02299747,09-05-2018,0000077393,1324.69,0,Metric API deployment and AIM import,261500,HR Training & Conferences
South Lakeland District Council,http://opendatacommunities.org/id/district-council/south-lakeland,43251,Legal Services,Central Services,http://opendatacommunities.org/def/concept/finance/sercop/objective/102,4-5 GRAYS INN,,09-05-2018,0000077394,1250,0,Fees for Mr T S re:  Parish Polls,281300,Legal Services Legal Opinion
South Lakeland District Council,http://opendatacommunities.org/id/district-council/south-lakeland,43251,Leisure and Wellbeing,Cultural Environmental Regulatory & Planning Services,http://opendatacommunities.org/def/concept/finance/sercop/objective/104,J S Cleaning Services,,09-05-2018,0000077395,60,0,For weekly cleaning of chapel,131010,Cleaning & Janitorial Cleaning Materials
South Lakeland District Council,http://opendatacommunities.org/id/district-council/south-lakeland,43251,Business Support Community Services,Internal Trading Accounts,,RIBBLESDALE AUTO ELECTRICS 1992 LTD,02732686,09-05-2018,0000077396,77.46,0,Parts,381500,Vehicle Mgt Parts
South Lakeland District Council,http://opendatacommunities.org/id/district-council/south-lakeland,43251,Business Support Community Services,Internal Trading Accounts,,RIBBLESDALE AUTO ELECTRICS 1992 LTD,02732686,09-05-2018,0000077397,89.1,0,Parts,381500,Vehicle Mgt Parts
South Lakeland District Council,http://opendatacommunities.org/id/district-council/south-lakeland,43251,Development Implementation,Cultural Environmental Regulatory & Planning Services,http://opendatacommunities.org/def/concept/finance/sercop/objective/104,Whitbread Plc,04120344,09-05-2018,0000077398,550,0,Participation in the Kendal Courtesy,201700,Financial Services Grants
South Lakeland District Council,http://opendatacommunities.org/id/district-council/south-lakeland,43251,Development Implementation,Cultural Environmental Regulatory & Planning Services,http://opendatacommunities.org/def/concept/finance/sercop/objective/104,BREWERY ARTS CENTRE,,09-05-2018,0000077399,550,0,Participation in the Kendal Courtesy,291000,Arts & Leisure Services Events
South Lakeland District Council,http://opendatacommunities.org/id/district-council/south-lakeland,43251,Development Implementation,Cultural Environmental Regulatory & Planning Services,http://opendatacommunities.org/def/concept/finance/sercop/objective/104,LAKELAND ARTS,08162578,09-05-2018,0000077400,550,0,Participation in the Kendal Courtesy,201700,Financial Services Grants
South Lakeland District Council,http://opendatacommunities.org/id/district-council/south-lakeland,43251,Development Implementation,Cultural Environmental Regulatory & Planning Services,http://opendatacommunities.org/def/concept/finance/sercop/objective/104,Beales,05565546,09-05-2018,0000077401,550,0,Participation in the Kendal Courtesy,201700,Financial Services Grants
South Lakeland District Council,http://opendatacommunities.org/id/district-council/south-lakeland,43251,Business Support Community Services,Cultural Environmental Regulatory & Planning Services,http://opendatacommunities.org/def/concept/finance/sercop/objective/104,ARCO LIMITED,00133804,14-05-2018,0000077402,17.32,0,COat,141100,Clothing Protective
South Lakeland District Council,http://opendatacommunities.org/id/district-council/south-lakeland,43251,Business Support Community Services,Cultural Environmental Regulatory & Planning Services,http://opendatacommunities.org/def/concept/finance/sercop/objective/104,ARCO LIMITED,00133804,09-05-2018,0000077403,170,0,Cleaning materials,141100,Clothing Protective
South Lakeland District Council,http://opendatacommunities.org/id/district-council/south-lakeland,43251,Business Support Community Services,Cultural Environmental Regulatory & Planning Services,http://opendatacommunities.org/def/concept/finance/sercop/objective/104,BRIAN ARMISTEAD LTD T/A SINKFALL RECYCLI,04133280,09-05-2018,0000077404,192.5,0,Green waste tipping - 2018/19,391110,Construction Buildings Construction
South Lakeland District Council,http://opendatacommunities.org/id/district-council/south-lakeland,43251,Business Support Community Services,Cultural Environmental Regulatory & Planning Services,http://opendatacommunities.org/def/concept/finance/sercop/objective/104,BRIAN ARMISTEAD LTD T/A SINKFALL RECYCLI,04133280,09-05-2018,0000077405,2384.78,0,Green waste tipping - 2018/19,391110,Construction Buildings Construction
South Lakeland District Council,http://opendatacommunities.org/id/district-council/south-lakeland,43251,Business Support Community Services,Cultural Environmental Regulatory & Planning Services,http://opendatacommunities.org/def/concept/finance/sercop/objective/104,ADECCO UK LIMITED,00593232,09-05-2018,0000077406,481.16,0,Agency staff 2018/19,261400,HR Temporary & Agency Staff
South Lakeland District Council,http://opendatacommunities.org/id/district-council/south-lakeland,43251,Business Support Community Services,Cultural Environmental Regulatory & Planning Services,http://opendatacommunities.org/def/concept/finance/sercop/objective/104,FAUN ZOELLER (UK) LTD,00751804,09-05-2018,0000077407,2091,0,Controller,381400,Vehicle Mgt Maintenance
South Lakeland District Council,http://opendatacommunities.org/id/district-council/south-lakeland,43251,Electoral Services,Central Services,http://opendatacommunities.org/def/concept/finance/sercop/objective/102,RIVERBANK HOSPITALITY CATERING,,14-05-2018,0000077408,583,0,106 x lunch bags for staff at the,111000,Catering Banquet & Catering
South Lakeland District Council,http://opendatacommunities.org/id/district-council/south-lakeland,43251,Business Support Community Services,Cultural Environmental Regulatory & Planning Services,http://opendatacommunities.org/def/concept/finance/sercop/objective/104,Carrington West,,09-05-2018,0000077409,2774.48,0,Supply of agency staff for post of,159999,Consultancy Not Elsewhere Classified
South Lakeland District Council,http://opendatacommunities.org/id/district-council/south-lakeland,43251,Business Support Community Services,Cultural Environmental Regulatory & Planning Services,http://opendatacommunities.org/def/concept/finance/sercop/objective/104,Carrington West,,09-05-2018,0000077410,2125.48,0,Supply of agency staff for post of,159999,Consultancy Not Elsewhere Classified
South Lakeland District Council,http://opendatacommunities.org/id/district-council/south-lakeland,43251,Business Support Community Services,Housing Services,http://opendatacommunities.org/def/concept/finance/sercop/objective/108,Ashberry Recruitment,07202591,09-05-2018,0000077411,667.56,0,Agency staff for Town View Fields,261300,HR Recruitment & Assessment
South Lakeland District Council,http://opendatacommunities.org/id/district-council/south-lakeland,43251,Financial Services,Central Services,http://opendatacommunities.org/def/concept/finance/sercop/objective/102,Creditsafe Business Solutions Ltd,03836192,09-05-2018,0000077412,420,0,Creditsafe for the period 14 April 2018,209999,Financial Services Not Elsewhere Classif
South Lakeland District Council,http://opendatacommunities.org/id/district-council/south-lakeland,43251,Development Implementation,Central Services,http://opendatacommunities.org/def/concept/finance/sercop/objective/102,ADECCO UK LIMITED,00593232,09-05-2018,0000077413,127.6,0,Cleaner for SLDC - M P - April,261400,HR Temporary & Agency Staff
South Lakeland District Council,http://opendatacommunities.org/id/district-council/south-lakeland,43251,Development Implementation,Central Services,http://opendatacommunities.org/def/concept/finance/sercop/objective/102,ADECCO UK LIMITED,00593232,09-05-2018,0000077414,76.08,0,Cleaner for SLDC - S D - April 2018,261400,HR Temporary & Agency Staff
South Lakeland District Council,http://opendatacommunities.org/id/district-council/south-lakeland,43251,Business Support Community Services,Housing Services,http://opendatacommunities.org/def/concept/finance/sercop/objective/108,G B BURROW & SON,,09-05-2018,0000077415,132,0,Storage costs,192300,Facilities Storage
South Lakeland District Council,http://opendatacommunities.org/id/district-council/south-lakeland,43251,Business Support Community Services,Housing Services,http://opendatacommunities.org/def/concept/finance/sercop/objective/108,G B BURROW & SON,,09-05-2018,0000077416,104,0,Storage costs,192300,Facilities Storage
South Lakeland District Council,http://opendatacommunities.org/id/district-council/south-lakeland,43251,Business Support Community Services,Cultural Environmental Regulatory & Planning Services,http://opendatacommunities.org/def/concept/finance/sercop/objective/104,INTELLIGENT DATA SYSTEMS (UK) LTD,05148878,09-05-2018,0000077417,63.25,0,IDS Checks for Taxi Drivers,271510,ICT Application Service Provision
South Lakeland District Council,http://opendatacommunities.org/id/district-council/south-lakeland,43251,Development Implementation,Central Services,http://opendatacommunities.org/def/concept/finance/sercop/objective/102,ENVIROFIRST LTD,05999123,14-05-2018,0000077418,119.28,0,Lowther Street Wheelie Bin Mixed,182012,Environment Waste Management Recycling
South Lakeland District Council,http://opendatacommunities.org/id/district-council/south-lakeland,43251,Westmorland Centre Parking Office,Transport,http://opendatacommunities.org/def/concept/finance/sercop/objective/107,Inception Design,07951237,14-05-2018,0000077419,35,0,Kendal Snowsports Club car park,191100,Facilities Design & Photography
South Lakeland District Council,http://opendatacommunities.org/id/district-council/south-lakeland,43251,Business Support Community Services,Cultural Environmental Regulatory & Planning Services,http://opendatacommunities.org/def/concept/finance/sercop/objective/104,Greenwich Leisure Ltd,,14-05-2018,0000077420,55829,0,Leisure Management Fees,291400,Arts & Leisure Services Sport & Fitness
South Lakeland District Council,http://opendatacommunities.org/id/district-council/south-lakeland,43251,Business Support Community Services,Internal Trading Accounts,,M G D LTD,,14-05-2018,0000077421,35,0,MOTs 2018/19,381400,Vehicle Mgt Maintenance
South Lakeland District Council,http://opendatacommunities.org/id/district-council/south-lakeland,43251,Financial Services,Central Services,http://opendatacommunities.org/def/concept/finance/sercop/objective/102,BUSY BEES BENEFITS LTD,06758298,14-05-2018,0000077422,36.51,0,Busy Bees child care voucher service,202100,Financial Services Subscriptions
South Lakeland District Council,http://opendatacommunities.org/id/district-council/south-lakeland,43251,Business Support Community Services,Internal Trading Accounts,,SOLWAY DAF,1393710,14-05-2018,0000077423,40.8,0,Parts,381000,Vehicle Mgt Commercial
South Lakeland District Council,http://opendatacommunities.org/id/district-council/south-lakeland,43251,Financial Services,Non-Service Payments,,BUSY BEES BENEFITS LTD,06758298,14-05-2018,0000077424,1043,0,child care vouchers,202100,Financial Services Subscriptions
South Lakeland District Council,http://opendatacommunities.org/id/district-council/south-lakeland,43251,Financial Services,Non-Service Payments,,COMPUTERSHARE VOUCHER SERVICES LTD,04968447,14-05-2018,0000077425,1115.93,0,child care vouchers,202100,Financial Services Subscriptions
South Lakeland District Council,http://opendatacommunities.org/id/district-council/south-lakeland,43251,Business Support Community Services,Internal Trading Accounts,,EK MOTOR FACTORS LTD,00838524,14-05-2018,0000077426,32.96,0,Parts,381400,Vehicle Mgt Maintenance
South Lakeland District Council,http://opendatacommunities.org/id/district-council/south-lakeland,43251,Revenues and Benefits,Central Services,http://opendatacommunities.org/def/concept/finance/sercop/objective/102,ALLPAY.NET LTD (NCR),6871069,01-05-2018,0000077427,13.83,0,2018 - 19 Allpay - Internet Payment /,209999,Financial Services Not Elsewhere Classif
South Lakeland District Council,http://opendatacommunities.org/id/district-council/south-lakeland,43251,Revenues and Benefits,Central Services,http://opendatacommunities.org/def/concept/finance/sercop/objective/102,ALLPAY.NET LTD (NCR),6871069,01-05-2018,0000077428,14.33,0,2018 - 19 Allpay - Internet Payment /,209999,Financial Services Not Elsewhere Classif
South Lakeland District Council,http://opendatacommunities.org/id/district-council/south-lakeland,43251,Business Support Community Services,Internal Trading Accounts,,FAUN ZOELLER (UK) LTD,00751804,14-05-2018,0000077429,361.65,0,Sensor,381400,Vehicle Mgt Maintenance
South Lakeland District Council,http://opendatacommunities.org/id/district-council/south-lakeland,43251,Revenues and Benefits,Central Services,http://opendatacommunities.org/def/concept/finance/sercop/objective/102,ALLPAY.NET LTD (NCR),6871069,01-05-2018,0000077430,14.23,0,2018 - 19 Allpay - Internet Payment /,209999,Financial Services Not Elsewhere Classif
South Lakeland District Council,http://opendatacommunities.org/id/district-council/south-lakeland,43251,Revenues and Benefits,Central Services,http://opendatacommunities.org/def/concept/finance/sercop/objective/102,ALLPAY.NET LTD (NCR),6871069,01-05-2018,0000077431,27.46,0,2018 - 19 Allpay - Internet Payment /,209999,Financial Services Not Elsewhere Classif
South Lakeland District Council,http://opendatacommunities.org/id/district-council/south-lakeland,43251,Business Support Community Services,Internal Trading Accounts,,K & S Commercial Ltd,9068885,14-05-2018,0000077432,16.5,0,Tacho battery,381400,Vehicle Mgt Maintenance
South Lakeland District Council,http://opendatacommunities.org/id/district-council/south-lakeland,43251,Revenues and Benefits,Central Services,http://opendatacommunities.org/def/concept/finance/sercop/objective/102,ALLPAY.NET LTD (NCR),6871069,01-05-2018,0000077433,1586.39,0,2018 - 19 Allpay - Internet Payment /,209999,Financial Services Not Elsewhere Classif
South Lakeland District Council,http://opendatacommunities.org/id/district-council/south-lakeland,43251,Business Support Community Services,Internal Trading Accounts,,SOLWAY DAF,1393710,14-05-2018,0000077434,130.43,0,Parts,381000,Vehicle Mgt Commercial
South Lakeland District Council,http://opendatacommunities.org/id/district-council/south-lakeland,43251,Business Support Community Services,Cultural Environmental Regulatory & Planning Services,http://opendatacommunities.org/def/concept/finance/sercop/objective/104,LANCASTER TRAINING SERVICES LTD,01447612,14-05-2018,0000077435,900,0,Training 2018/19 (GWK),261500,HR Training & Conferences
South Lakeland District Council,http://opendatacommunities.org/id/district-council/south-lakeland,43251,Revenues and Benefits,Central Services,http://opendatacommunities.org/def/concept/finance/sercop/objective/102,ALLPAY.NET LTD (NCR),6871069,01-05-2018,0000077436,331.61,0,2018 - 19 Allpay - Internet Payment /,209999,Financial Services Not Elsewhere Classif
South Lakeland District Council,http://opendatacommunities.org/id/district-council/south-lakeland,43251,Business Support Community Services,Cultural Environmental Regulatory & Planning Services,http://opendatacommunities.org/def/concept/finance/sercop/objective/104,LANCASTER TRAINING SERVICES LTD,01447612,14-05-2018,0000077437,1087,0,Training 2018/19 (GWK),261500,HR Training & Conferences
South Lakeland District Council,http://opendatacommunities.org/id/district-council/south-lakeland,43251,Revenues and Benefits,Central Services,http://opendatacommunities.org/def/concept/finance/sercop/objective/102,ALLPAY.NET LTD (NCR),6871069,01-05-2018,0000077438,10.86,0,2018 - 19 Allpay - Internet Payment /,209999,Financial Services Not Elsewhere Classif
South Lakeland District Council,http://opendatacommunities.org/id/district-council/south-lakeland,43251,Revenues and Benefits,Central Services,http://opendatacommunities.org/def/concept/finance/sercop/objective/102,ALLPAY.NET LTD (NCR),6871069,01-05-2018,0000077439,16.79,0,2018 - 19 Allpay - Internet Payment /,209999,Financial Services Not Elsewhere Classif
South Lakeland District Council,http://opendatacommunities.org/id/district-council/south-lakeland,43251,Development Implementation,Cultural Environmental Regulatory & Planning Services,http://opendatacommunities.org/def/concept/finance/sercop/objective/104,PS BUSINESS MATTERS,08147185,14-05-2018,0000077440,700,0,Kendal Futures Programme - Project,151900,Consultancy Management
South Lakeland District Council,http://opendatacommunities.org/id/district-council/south-lakeland,43251,Development Implementation,SLDC as Agent,,PS BUSINESS MATTERS,08147185,14-05-2018,0000077440,800,0,Kendal Futures Programme - Project,151900,Consultancy Management
South Lakeland District Council,http://opendatacommunities.org/id/district-council/south-lakeland,43251,Leisure and Wellbeing,Cultural Environmental Regulatory & Planning Services,http://opendatacommunities.org/def/concept/finance/sercop/objective/104,Pied Piper Northern Ltd,04220926,14-05-2018,0000077441,180,0,6 monthly visits for Priory Rd,181500,Environment Animal Services
South Lakeland District Council,http://opendatacommunities.org/id/district-council/south-lakeland,43251,Development Implementation,Housing,http://opendatacommunities.org/def/concept/finance/sercop/objective/108,Howe Projects Ltd,,16-05-2018,0000077442,5276.65,0,Town View Fields Hostel REF: 70701K,109999,Building Not Elsewhere Classified
South Lakeland District Council,http://opendatacommunities.org/id/district-council/south-lakeland,43251,Development Management,Cultural Environmental Regulatory & Planning Services,http://opendatacommunities.org/def/concept/finance/sercop/objective/104,M & P Gadsden Ltd,,14-05-2018,0000077443,45,0,Checking of Structural calculations,391000,Construction Architect
South Lakeland District Council,http://opendatacommunities.org/id/district-council/south-lakeland,43251,Social Enterprise Admin,Cultural Environmental Regulatory & Planning Services,http://opendatacommunities.org/def/concept/finance/sercop/objective/104,FURNESS NEWSPAPERS LTD,01155841,14-05-2018,0000077444,108.2,0,PUBLIC NOTICES FOR PLANNING 1 APRIL 2015,191000,Facilities Advertising
South Lakeland District Council,http://opendatacommunities.org/id/district-council/south-lakeland,43251,Development Strategy,Cultural Environmental Regulatory & Planning Services,http://opendatacommunities.org/def/concept/finance/sercop/objective/104,Programme Officer Solutions Ltd,,14-05-2018,0000077445,325,0,Programme Officer work for AONB and DM,261413,HR- Temporary Staff- Professional
South Lakeland District Council,http://opendatacommunities.org/id/district-council/south-lakeland,43251,Development Strategy,Cultural Environmental Regulatory & Planning Services,http://opendatacommunities.org/def/concept/finance/sercop/objective/104,Programme Officer Solutions Ltd,,14-05-2018,0000077446,600,0,Programme Officer work for AONB and DM,261413,HR- Temporary Staff- Professional
South Lakeland District Council,http://opendatacommunities.org/id/district-council/south-lakeland,43251,Development Strategy,Cultural Environmental Regulatory & Planning Services,http://opendatacommunities.org/def/concept/finance/sercop/objective/104,Programme Officer Solutions Ltd,,14-05-2018,0000077447,825,0,Programme Officer work for AONB and DM,261413,HR- Temporary Staff- Professional
South Lakeland District Council,http://opendatacommunities.org/id/district-council/south-lakeland,43251,Electoral Services,Central Services,http://opendatacommunities.org/def/concept/finance/sercop/objective/102,SOUNDSMITH LIMITED,05366630,14-05-2018,0000077448,910,0,Soundsmith equipment hire,171111,Education Audio Visual
South Lakeland District Council,http://opendatacommunities.org/id/district-council/south-lakeland,43251,Development Implementation,Cultural Environmental Regulatory & Planning Services,http://opendatacommunities.org/def/concept/finance/sercop/objective/104,LAKE DISTRICT SUMMER MUSIC,01887957,14-05-2018,0000077449,200,0,A5 Explore Advert in LDSM Programme,291300,Arts & Leisure Services Performing Arts
South Lakeland District Council,http://opendatacommunities.org/id/district-council/south-lakeland,43251,Kendal Town Hall,Cultural Environmental Regulatory & Planning Services,http://opendatacommunities.org/def/concept/finance/sercop/objective/104,BUNZL CLEANING & HYGIENE SUPPLIES,2902454,14-05-2018,0000077450,264.53,0,Code: 050044,131011,Cleaning & Janitorial Cleaning Materials
South Lakeland District Council,http://opendatacommunities.org/id/district-council/south-lakeland,43251,Financial Services,Central Services,http://opendatacommunities.org/def/concept/finance/sercop/objective/102,Capita Secure Information Solutions Ltd,01593831,14-05-2018,0000077451,13874.72,0,Purchase Ordering annual maintenance 1,271600,ICT Software Customised & Bespoke
South Lakeland District Council,http://opendatacommunities.org/id/district-council/south-lakeland,43251,Development Implementation,Central Services,http://opendatacommunities.org/def/concept/finance/sercop/objective/102,ENVIROFIRST LTD,05999123,14-05-2018,0000077452,165.4,0,Lowther Street Wheelie bin mixed,182012,Environment Waste Management Recycling
South Lakeland District Council,http://opendatacommunities.org/id/district-council/south-lakeland,43251,Business Support Community Services,Cultural Environmental Regulatory & Planning Services,http://opendatacommunities.org/def/concept/finance/sercop/objective/104,North West Equine Vets Ltd,09731215,14-05-2018,0000077453,111.48,0,Inspection at Casterton School 24/04/18,180040,Env. Service- Veterinary Services
South Lakeland District Council,http://opendatacommunities.org/id/district-council/south-lakeland,43251,ICT Group,Central Services,http://opendatacommunities.org/def/concept/finance/sercop/objective/102,DAISY COMMUNICATIONS LTD,04145329,16-05-2018,0000077454,400.46,0,Daisy Line Rentals,271700,ICT Telecommunications Fixed
South Lakeland District Council,http://opendatacommunities.org/id/district-council/south-lakeland,43251,ICT Group,Central Services,http://opendatacommunities.org/def/concept/finance/sercop/objective/102,DAISY COMMUNICATIONS LTD,04145329,16-05-2018,0000077454,102,0,Daisy Line Rentals,271700,ICT Telecommunications Fixed
South Lakeland District Council,http://opendatacommunities.org/id/district-council/south-lakeland,43251,ICT Group,Cultural Environmental Regulatory & Planning Services,http://opendatacommunities.org/def/concept/finance/sercop/objective/104,BRITISH TELECOMMUNICATIONS PLC (DD),,01-05-2018,0000077456,128.8,0,"Line Rental for 01539 735120, the",279999,ICT Not Elsewhere Classified
South Lakeland District Council,http://opendatacommunities.org/id/district-council/south-lakeland,43251,Development Implementation,Cultural Environmental Regulatory & Planning Services,http://opendatacommunities.org/def/concept/finance/sercop/objective/104,GRANTS- MISCELLANEOUS,,14-05-2018,0000077465,1500,0,"Shop Front Grant for 18 Highgate, Kendal",201700,Financial Services Grants
South Lakeland District Council,http://opendatacommunities.org/id/district-council/south-lakeland,43251,Business Support Community Services,Internal Trading Accounts,,TECHNIJET LTD,02776601,14-05-2018,0000077467,103.29,0,Service & repair pressure washers,139999,Cleaning & Janitorial Not Elsewhere Clas
South Lakeland District Council,http://opendatacommunities.org/id/district-council/south-lakeland,43251,Democratic Services,Central Services,http://opendatacommunities.org/def/concept/finance/sercop/objective/102,4-5 GRAYS INN,,14-05-2018,0000077468,250,0,Professional fees of Mr T S,281300,Legal Services Legal Opinion
South Lakeland District Council,http://opendatacommunities.org/id/district-council/south-lakeland,43251,Development Implementation,Cultural Environmental Regulatory & Planning Services,http://opendatacommunities.org/def/concept/finance/sercop/objective/104,CUMBRIA CHAMBER OF COMMERCE,04211364,14-05-2018,0000077469,31050,0,Provision of Business Support Services,151000,Consultancy Business
South Lakeland District Council,http://opendatacommunities.org/id/district-council/south-lakeland,43251,Democratic Services,Cultural Environmental Regulatory & Planning Services,http://opendatacommunities.org/def/concept/finance/sercop/objective/104,St John's Chambers,,14-05-2018,0000077470,440,0,Counsel from Mr T L in,281200,Legal Services General Support
South Lakeland District Council,http://opendatacommunities.org/id/district-council/south-lakeland,43251,Democratic Services,Cultural Environmental Regulatory & Planning Services,http://opendatacommunities.org/def/concept/finance/sercop/objective/104,St John's Chambers,,14-05-2018,0000077471,425,0,Counsel from Mr T L in,281200,Legal Services General Support
South Lakeland District Council,http://opendatacommunities.org/id/district-council/south-lakeland,43251,Democratic Services,Cultural Environmental Regulatory & Planning Services,http://opendatacommunities.org/def/concept/finance/sercop/objective/104,St John's Chambers,,14-05-2018,0000077472,425,0,Counsel from Mr T L in,281200,Legal Services General Support
South Lakeland District Council,http://opendatacommunities.org/id/district-council/south-lakeland,43251,Human Resources,Central Services,http://opendatacommunities.org/def/concept/finance/sercop/objective/102,CUMBRIA COUNTY COUNCIL,,23-05-2018,0000077473,54,0,Hostel Support Officer FU 30.04.2018,908000,Public Bodies Council support services
South Lakeland District Council,http://opendatacommunities.org/id/district-council/south-lakeland,43251,Business Support Community Services,SLDC as Agent,,GRANTS- MISCELLANEOUS,,14-05-2018,0000077478,200,0,South Cumbria CSP contribution towards,201700,Financial Services Grants
South Lakeland District Council,http://opendatacommunities.org/id/district-council/south-lakeland,43251,Environment and Housing,Housing Services,http://opendatacommunities.org/def/concept/finance/sercop/objective/108,Michael Nicholson,,14-05-2018,0000077479,600,0,Monthly rent ,250000,Housing
South Lakeland District Council,http://opendatacommunities.org/id/district-council/south-lakeland,43251,Environment and Housing,Housing Services,http://opendatacommunities.org/def/concept/finance/sercop/objective/108,Duncan Richards & Judith Cantrell,,14-05-2018,0000077480,520,0,Monthly rent ,202000,Financial Services Rents
South Lakeland District Council,http://opendatacommunities.org/id/district-council/south-lakeland,43251,Business Support Community Services,Cultural Environmental Regulatory & Planning Services,http://opendatacommunities.org/def/concept/finance/sercop/objective/104,NORTHGATE VEHICLE HIRE LTD,01434157,16-05-2018,0000077482,92.03,0,Car Hire 3 day hire (Kenilworth),381600,Vehicle Mgt Leasing
South Lakeland District Council,http://opendatacommunities.org/id/district-council/south-lakeland,43251,Business Support Community Services,SLDC as Agent,,STEVEN BARBER PHOTOGRAPHY LTD,06058535,14-05-2018,0000077484,300,0,Half day photography at Brewery Arts,191100,Facilities Design & Photography
South Lakeland District Council,http://opendatacommunities.org/id/district-council/south-lakeland,43251,Environment and Housing,Housing Services,http://opendatacommunities.org/def/concept/finance/sercop/objective/108,NOWMEDICAL,04338252,14-05-2018,0000077489,35,0,Medical Report,311600,Healthcare Services
South Lakeland District Council,http://opendatacommunities.org/id/district-council/south-lakeland,43251,Environment and Housing,Housing Services,http://opendatacommunities.org/def/concept/finance/sercop/objective/108,Blue Star Taxis (Kendal) Ltd,06464607,14-05-2018,0000077492,8.1,0,Taxi from TVH to Boots Chemist & back,361600,Public Transport Taxi Services Home to S
South Lakeland District Council,http://opendatacommunities.org/id/district-council/south-lakeland,43251,Business Support Community Services,Internal Trading Accounts,,Gemco Service Limited,03514486,14-05-2018,0000077494,180,0,Service tyre changes & wheel balancer,381400,Vehicle Mgt Maintenance
South Lakeland District Council,http://opendatacommunities.org/id/district-council/south-lakeland,43251,Business Support Community Services,Internal Trading Accounts,,Gemco Service Limited,03514486,14-05-2018,0000077495,480,0,Repair brake roller,381400,Vehicle Mgt Maintenance
South Lakeland District Council,http://opendatacommunities.org/id/district-council/south-lakeland,43251,Business Support Community Services,Cultural Environmental Regulatory & Planning Services,http://opendatacommunities.org/def/concept/finance/sercop/objective/104,RIBBLE FUEL OILS,,14-05-2018,0000077496,1477.26,0,Gas oil 2018/19,381100,Vehicle Mgt Fuel
South Lakeland District Council,http://opendatacommunities.org/id/district-council/south-lakeland,43251,Business Support Community Services,Cultural Environmental Regulatory & Planning Services,http://opendatacommunities.org/def/concept/finance/sercop/objective/104,Enevo UK Ltd,9347391,14-05-2018,0000077497,416,0,Monthly subscriptions 2018/19,261517,ICT-Consultancy
South Lakeland District Council,http://opendatacommunities.org/id/district-council/south-lakeland,43251,Business Support Community Services,Internal Trading Accounts,,FLEET PARTS LTD,01252714,14-05-2018,0000077498,1450,0,Subscription for the Texa truck software,381500,Vehicle Mgt Parts
South Lakeland District Council,http://opendatacommunities.org/id/district-council/south-lakeland,43251,Business Support Community Services,Internal Trading Accounts,,Slicker Recycling Ltd,08652156,14-05-2018,0000077499,285,0,Waste oil collection,182015,Environment Waste Mgt Waste Disposal
South Lakeland District Council,http://opendatacommunities.org/id/district-council/south-lakeland,43251,Business Support Community Services,Internal Trading Accounts,,K S INTERNATIONAL LTD,02703321,14-05-2018,0000077500,33,0,Parts,381500,Vehicle Mgt Parts
South Lakeland District Council,http://opendatacommunities.org/id/district-council/south-lakeland,43251,Business Support Community Services,Internal Trading Accounts,,EK MOTOR FACTORS LTD,00838524,14-05-2018,0000077501,199.62,0,Parts,381400,Vehicle Mgt Maintenance
South Lakeland District Council,http://opendatacommunities.org/id/district-council/south-lakeland,43251,Business Support Community Services,Cultural Environmental Regulatory & Planning Services,http://opendatacommunities.org/def/concept/finance/sercop/objective/104,Masterstaff Limited,02777593,14-05-2018,0000077502,4760.1,0,Agency staff,261300,HR Recruitment & Assessment
South Lakeland District Council,http://opendatacommunities.org/id/district-council/south-lakeland,43251,Business Support Community Services,Internal Trading Accounts,,J R RICHARDSON LTD,02225792,14-05-2018,0000077503,385.71,0,Vehicle washing consumables,381500,Vehicle Mgt Parts
South Lakeland District Council,http://opendatacommunities.org/id/district-council/south-lakeland,43251,Business Support Community Services,Cultural Environmental Regulatory & Planning Services,http://opendatacommunities.org/def/concept/finance/sercop/objective/104,FUMEX LTD,05224923,14-05-2018,0000077504,98,0,Test exhaust extraction system,101700,Building Heating & Air Conditioning
South Lakeland District Council,http://opendatacommunities.org/id/district-council/south-lakeland,43251,Business Support Community Services,Internal Trading Accounts,,Harry Park Tyres Ltd,08131208,14-05-2018,0000077505,170,0,Tyres,381500,Vehicle Mgt Parts
South Lakeland District Council,http://opendatacommunities.org/id/district-council/south-lakeland,43251,Business Support Community Services,Internal Trading Accounts,,GARWOOD EUROPE LTD,04333504,14-05-2018,0000077506,411.48,0,Filters,182011,Environment Waste Management Consumables
South Lakeland District Council,http://opendatacommunities.org/id/district-council/south-lakeland,43251,Business Support Community Services,Internal Trading Accounts,,LANCASHIRE DAF,,14-05-2018,0000077507,112.15,0,Filters,381400,Vehicle Mgt Maintenance
South Lakeland District Council,http://opendatacommunities.org/id/district-council/south-lakeland,43251,Business Support Community Services,Cultural Environmental Regulatory & Planning Services,http://opendatacommunities.org/def/concept/finance/sercop/objective/104,BRIAN ARMISTEAD LTD T/A SINKFALL RECYCLI,04133280,14-05-2018,0000077509,1612.5,0,Green waste tipping - 2018/19,391110,Construction Buildings Construction
South Lakeland District Council,http://opendatacommunities.org/id/district-council/south-lakeland,43251,Environment and Housing,Housing Services,http://opendatacommunities.org/def/concept/finance/sercop/objective/108,James Andrews Recruitment Solutions,06834852,14-05-2018,0000077510,481.38,0,Payment for S P,261400,HR Temporary & Agency Staff
South Lakeland District Council,http://opendatacommunities.org/id/district-council/south-lakeland,43251,Environment and Housing,Housing Services,http://opendatacommunities.org/def/concept/finance/sercop/objective/108,James Andrews Recruitment Solutions,06834852,14-05-2018,0000077510,481.38,0,Payment for S P,261400,HR Temporary & Agency Staff
South Lakeland District Council,http://opendatacommunities.org/id/district-council/south-lakeland,43251,Business Support Community Services,Housing Services,http://opendatacommunities.org/def/concept/finance/sercop/objective/108,James Andrews Recruitment Solutions,06834852,14-05-2018,0000077511,939.01,0,Payment for J H,261400,HR Temporary & Agency Staff
South Lakeland District Council,http://opendatacommunities.org/id/district-council/south-lakeland,43251,Business Support Community Services,Transport Planning Policy,http://opendatacommunities.org/def/concept/finance/sercop/objective/107,ARCO LIMITED,00133804,14-05-2018,0000077513,55.03,0,Cleaning materials,141100,Clothing Protective
South Lakeland District Council,http://opendatacommunities.org/id/district-council/south-lakeland,43251,Business Support Community Services,Cultural Environmental Regulatory & Planning Services,http://opendatacommunities.org/def/concept/finance/sercop/objective/104,ARCO LIMITED,00133804,14-05-2018,0000077513,27.76,0,Cleaning materials,141100,Clothing Protective
South Lakeland District Council,http://opendatacommunities.org/id/district-council/south-lakeland,43251,Business Support Community Services,Transport Planning Policy,http://opendatacommunities.org/def/concept/finance/sercop/objective/107,ARCO LIMITED,00133804,14-05-2018,0000077514,113.31,0,Cleaning materials,141100,Clothing Protective
South Lakeland District Council,http://opendatacommunities.org/id/district-council/south-lakeland,43251,Business Support Community Services,Cultural Environmental Regulatory & Planning Services,http://opendatacommunities.org/def/concept/finance/sercop/objective/104,ARCO LIMITED,00133804,14-05-2018,0000077514,79.92,0,Cleaning materials,141100,Clothing Protective
South Lakeland District Council,http://opendatacommunities.org/id/district-council/south-lakeland,43251,Business Support Community Services,Cultural Environmental Regulatory & Planning Services,http://opendatacommunities.org/def/concept/finance/sercop/objective/104,ARCO LIMITED,00133804,14-05-2018,0000077514,444.81,0,Cleaning materials,141100,Clothing Protective
South Lakeland District Council,http://opendatacommunities.org/id/district-council/south-lakeland,43251,Leisure and Wellbeing,Cultural Environmental Regulatory & Planning Services,http://opendatacommunities.org/def/concept/finance/sercop/objective/104,Quantified Tree Risk Assessment Ltd,05255873,14-05-2018,0000077516,85.5,0,QTRA user registration renewal from,241600,Horticultural Trees & Shrubs
South Lakeland District Council,http://opendatacommunities.org/id/district-council/south-lakeland,43251,Business Support Community Services,Central Services,http://opendatacommunities.org/def/concept/finance/sercop/objective/102,CUMBRIA COUNTY COUNCIL,,23-05-2018,0000077517,4410.8,0,LAND CHARGE SEARCH ENQUIRIES HIGHWAYS,908000,Public Bodies Council support services
South Lakeland District Council,http://opendatacommunities.org/id/district-council/south-lakeland,43251,Social Enterprise Admin,SLDC as Agent,,PAY BY PHONE (PAYPOINT),,14-05-2018,0000077518,550.59,0,Pay-by-phone charges from 1 April 2018,351400,Street & Traffic Traffic Control
South Lakeland District Council,http://opendatacommunities.org/id/district-council/south-lakeland,43251,Electoral Services,Central Services,http://opendatacommunities.org/def/concept/finance/sercop/objective/102,ROYAL MAIL GROUP PLC,,14-05-2018,0000077520,5019.36,0,Postal Vote Return Postage,301200,Mail Services� Postage
South Lakeland District Council,http://opendatacommunities.org/id/district-council/south-lakeland,43251,Electoral Services,Central Services,http://opendatacommunities.org/def/concept/finance/sercop/objective/102,SCI PRINT LTD,,16-05-2018,0000077521,10299.08,0,Printing Ballot Papers,191600,Facilities Printing
South Lakeland District Council,http://opendatacommunities.org/id/district-council/south-lakeland,43251,Electoral Services,Central Services,http://opendatacommunities.org/def/concept/finance/sercop/objective/102,SCI PRINT LTD,,16-05-2018,0000077522,492.7,0,Printing Ballot Papers,191600,Facilities Printing
South Lakeland District Council,http://opendatacommunities.org/id/district-council/south-lakeland,43251,Electoral Services,Central Services,http://opendatacommunities.org/def/concept/finance/sercop/objective/102,SCI PRINT LTD,,14-05-2018,0000077523,11709.07,0,Printing of Postal Packs,191600,Facilities Printing
South Lakeland District Council,http://opendatacommunities.org/id/district-council/south-lakeland,43251,Electoral Services,Central Services,http://opendatacommunities.org/def/concept/finance/sercop/objective/102,SCI PRINT LTD,,14-05-2018,0000077523,11745.28,0,Printing of Postal Packs,191600,Facilities Printing
South Lakeland District Council,http://opendatacommunities.org/id/district-council/south-lakeland,43251,Kendal Town Hall,External Trading Accounts,,LOOP PUBLISHING LTD,05311945,14-05-2018,0000077524,175,0,Quarter page advert for Kendal Markets,171114,Education Literature
South Lakeland District Council,http://opendatacommunities.org/id/district-council/south-lakeland,43251,Kendal Town Hall,Cultural Environmental Regulatory & Planning Services,http://opendatacommunities.org/def/concept/finance/sercop/objective/104,Rainbow International,4453327,14-05-2018,0000077525,400,0,Deep clean of curtains and carpet in,131310,Cleaning & Janitorial Cleaning Service
South Lakeland District Council,http://opendatacommunities.org/id/district-council/south-lakeland,43251,Business Support Community Services,Housing Services,http://opendatacommunities.org/def/concept/finance/sercop/objective/108,Mavis Fowles,,14-05-2018,0000077526,1073.96,0,Deposit,250000,Housing
South Lakeland District Council,http://opendatacommunities.org/id/district-council/south-lakeland,43251,Business Support Community Services,Internal Trading Accounts,,Romaquip UK,,16-05-2018,0000077528,476.13,0,Repair PTO,381000,Vehicle Mgt Commercial
South Lakeland District Council,http://opendatacommunities.org/id/district-council/south-lakeland,43251,Business Support Community Services,Internal Trading Accounts,,Romaquip UK,,16-05-2018,0000077529,142.5,0,Repair PTO,381000,Vehicle Mgt Commercial
South Lakeland District Council,http://opendatacommunities.org/id/district-council/south-lakeland,43251,Business Support Community Services,Cultural Environmental Regulatory & Planning Services,http://opendatacommunities.org/def/concept/finance/sercop/objective/104,ARCO LIMITED,00133804,16-05-2018,0000077531,51.93,0,Cleaning materials,141100,Clothing Protective
South Lakeland District Council,http://opendatacommunities.org/id/district-council/south-lakeland,43251,Business Support Community Services,Cultural Environmental Regulatory & Planning Services,http://opendatacommunities.org/def/concept/finance/sercop/objective/104,ARCO LIMITED,00133804,16-05-2018,0000077532,24.24,0,Cleaning materials,141100,Clothing Protective
South Lakeland District Council,http://opendatacommunities.org/id/district-council/south-lakeland,43251,Business Support Community Services,Cultural Environmental Regulatory & Planning Services,http://opendatacommunities.org/def/concept/finance/sercop/objective/104,ARCO LIMITED,00133804,16-05-2018,0000077533,281.52,0,Cleaning materials,141100,Clothing Protective
South Lakeland District Council,http://opendatacommunities.org/id/district-council/south-lakeland,43251,Business Support Community Services,Internal Trading Accounts,,VOLVO GROUP UK LTD,02190944,16-05-2018,0000077534,136.9,0,Parts,381000,Vehicle Mgt Commercial
South Lakeland District Council,http://opendatacommunities.org/id/district-council/south-lakeland,43251,Business Support Community Services,Internal Trading Accounts,,K S INTERNATIONAL LTD,02703321,16-05-2018,0000077535,240,0,Parts,381500,Vehicle Mgt Parts
South Lakeland District Council,http://opendatacommunities.org/id/district-council/south-lakeland,43251,Business Support Community Services,Internal Trading Accounts,,VOLVO GROUP UK LTD,02190944,16-05-2018,0000077536,300.05,0,Parts,381000,Vehicle Mgt Commercial
South Lakeland District Council,http://opendatacommunities.org/id/district-council/south-lakeland,43251,Business Support Community Services,Internal Trading Accounts,,TPS Preston,,16-05-2018,0000077537,87.95,0,Parts,381400,Vehicle Mgt Maintenance
South Lakeland District Council,http://opendatacommunities.org/id/district-council/south-lakeland,43251,Business Support Community Services,Internal Trading Accounts,,DENNIS EAGLE LTD,03794455,16-05-2018,0000077538,168.07,0,Parts,381300,Vehicle Mgt Industrial
South Lakeland District Council,http://opendatacommunities.org/id/district-council/south-lakeland,43251,Business Support Community Services,Internal Trading Accounts,,HAKO MACHINES LIMITED,01414225,16-05-2018,0000077539,531.33,0,Parts,131000,Cleaning & Janitorial Cleaning Materials
South Lakeland District Council,http://opendatacommunities.org/id/district-council/south-lakeland,43251,Business Support Community Services,Internal Trading Accounts,,Romaquip UK,,16-05-2018,0000077540,2905,0,Paper door,381000,Vehicle Mgt Commercial
South Lakeland District Council,http://opendatacommunities.org/id/district-council/south-lakeland,43251,Business Support Community Services,Internal Trading Accounts,,DENNIS EAGLE LTD,03794455,16-05-2018,0000077541,415.53,0,Parts,381300,Vehicle Mgt Industrial
South Lakeland District Council,http://opendatacommunities.org/id/district-council/south-lakeland,43251,Business Support Community Services,Internal Trading Accounts,,C T HAYTON LTD,01212766,16-05-2018,0000077542,18.15,0,Cables,391200,Construction Engineering
South Lakeland District Council,http://opendatacommunities.org/id/district-council/south-lakeland,43251,Business Support Community Services,Internal Trading Accounts,,HAKO MACHINES LIMITED,01414225,16-05-2018,0000077543,50.29,0,Parts,131000,Cleaning & Janitorial Cleaning Materials
South Lakeland District Council,http://opendatacommunities.org/id/district-council/south-lakeland,43251,Environment and Housing,Housing Services,http://opendatacommunities.org/def/concept/finance/sercop/objective/108,Mazars,,16-05-2018,0000077546,1190,0,Monthly rent ,202000,Financial Services Rents
South Lakeland District Council,http://opendatacommunities.org/id/district-council/south-lakeland,43251,Policy & Partnerships,Central Services,http://opendatacommunities.org/def/concept/finance/sercop/objective/102,KENDAL COLLEGE,,16-05-2018,0000077547,700,0,"Microsoft Word, Excel and PowerPoint",908999,Public Bodies Not Elsewhere Classified
South Lakeland District Council,http://opendatacommunities.org/id/district-council/south-lakeland,43251,Business Support Community Services,Internal Trading Accounts,,HYDRAIR TRUCK & TRAILER PARTS LTD,,16-05-2018,0000077548,85.98,0,Parts,381500,Vehicle Mgt Parts
South Lakeland District Council,http://opendatacommunities.org/id/district-council/south-lakeland,43251,Business Support Community Services,Internal Trading Accounts,,HYDRAIR TRUCK & TRAILER PARTS LTD,,16-05-2018,0000077549,148.94,0,Parts,381500,Vehicle Mgt Parts
South Lakeland District Council,http://opendatacommunities.org/id/district-council/south-lakeland,43251,Business Support Community Services,Cultural Environmental Regulatory & Planning Services,http://opendatacommunities.org/def/concept/finance/sercop/objective/104,H WICKS (LINDAL) LTD,00754590,16-05-2018,0000077550,300,0,"Gate fees, handling, transport & baling",182012,Environment Waste Management Recycling
South Lakeland District Council,http://opendatacommunities.org/id/district-council/south-lakeland,43251,Policy & Partnerships,Central Services,http://opendatacommunities.org/def/concept/finance/sercop/objective/102,ADECCO UK LIMITED,00593232,16-05-2018,0000077562,446.94,0,Temporary L&D Advisor supporting,261400,HR Temporary & Agency Staff
South Lakeland District Council,http://opendatacommunities.org/id/district-council/south-lakeland,43251,Development Implementation,Central Services,http://opendatacommunities.org/def/concept/finance/sercop/objective/102,ADECCO UK LIMITED,00593232,16-05-2018,0000077563,76.08,0,Cleaner for SLDC - S D - April 2018,261400,HR Temporary & Agency Staff
South Lakeland District Council,http://opendatacommunities.org/id/district-council/south-lakeland,43251,Business Support Community Services,Central Services,http://opendatacommunities.org/def/concept/finance/sercop/objective/102,ADECCO UK LIMITED,00593232,23-05-2018,0000077564,521.25,0,PAI Technician from 20/11/2017,261400,HR Temporary & Agency Staff
South Lakeland District Council,http://opendatacommunities.org/id/district-council/south-lakeland,43251,Development Implementation,Central Services,http://opendatacommunities.org/def/concept/finance/sercop/objective/102,ADECCO UK LIMITED,00593232,16-05-2018,0000077565,255.2,0,Cleaner for SLDC - M P - April,261400,HR Temporary & Agency Staff
South Lakeland District Council,http://opendatacommunities.org/id/district-council/south-lakeland,43251,Environment and Housing,Housing Services,http://opendatacommunities.org/def/concept/finance/sercop/objective/108,FIONA & JOHN ARMER,,16-05-2018,0000077566,890,0,Monthly rent for Flats ,250000,Housing
South Lakeland District Council,http://opendatacommunities.org/id/district-council/south-lakeland,43251,Business Support Community Services,Housing Services,http://opendatacommunities.org/def/concept/finance/sercop/objective/108,Ashberry Recruitment,07202591,16-05-2018,0000077568,1061.46,0,Agency staff for Town View Fields,261300,HR Recruitment & Assessment
South Lakeland District Council,http://opendatacommunities.org/id/district-council/south-lakeland,43251,Environment and Housing,Housing Services,http://opendatacommunities.org/def/concept/finance/sercop/objective/108,James Andrews Recruitment Solutions,06834852,21-05-2018,0000077569,707.76,0,Payment for J H,261400,HR Temporary & Agency Staff
South Lakeland District Council,http://opendatacommunities.org/id/district-council/south-lakeland,43251,Environment and Housing,Housing Services,http://opendatacommunities.org/def/concept/finance/sercop/objective/108,James Andrews Recruitment Solutions,06834852,21-05-2018,0000077570,691.56,0,Payment for S P,261400,HR Temporary & Agency Staff
South Lakeland District Council,http://opendatacommunities.org/id/district-council/south-lakeland,43251,Environment and Housing,Housing Services,http://opendatacommunities.org/def/concept/finance/sercop/objective/108,James Andrews Recruitment Solutions,06834852,21-05-2018,0000077570,691.56,0,Payment for S P,261400,HR Temporary & Agency Staff
South Lakeland District Council,http://opendatacommunities.org/id/district-council/south-lakeland,43251,Kendal Town Hall,Cultural Environmental Regulatory & Planning Services,http://opendatacommunities.org/def/concept/finance/sercop/objective/104,CUMBRIA WASTE RECYCLING LTD,03162439,16-05-2018,0000077571,168.5,0,Annual waste collection for Kendal Town,182012,Environment Waste Management Recycling
South Lakeland District Council,http://opendatacommunities.org/id/district-council/south-lakeland,43251,Policy & Partnerships,Central Services,http://opendatacommunities.org/def/concept/finance/sercop/objective/102,The Word Centre,03195753,16-05-2018,0000077575,1457.35,0,Plain English Writing Training 9th May,261500,HR Training & Conferences
South Lakeland District Council,http://opendatacommunities.org/id/district-council/south-lakeland,43251,Leisure and Wellbeing,Highways & Transport Services,http://opendatacommunities.org/def/concept/finance/sercop/objective/107,CUMBRIA WASTE RECYCLING LTD,03162439,16-05-2018,0000077576,52.84,0,660ltr bin at Kendal multi storey car,182012,Environment Waste Management Recycling
South Lakeland District Council,http://opendatacommunities.org/id/district-council/south-lakeland,43251,Lake Wardens,Cultural Environmental Regulatory & Planning Services,http://opendatacommunities.org/def/concept/finance/sercop/objective/104,CUMBRIA WASTE RECYCLING LTD,03162439,21-05-2018,0000077577,258.46,0,Emptying of Refuse Wheelie Bins at Lake,182012,Environment Waste Management Recycling
South Lakeland District Council,http://opendatacommunities.org/id/district-council/south-lakeland,43251,Lake Wardens,Cultural Environmental Regulatory & Planning Services,http://opendatacommunities.org/def/concept/finance/sercop/objective/104,CUMBRIA WASTE RECYCLING LTD,03162439,21-05-2018,0000077578,273.26,0,Emptying of Refuse Wheelie Bins at Lake,182012,Environment Waste Management Recycling
South Lakeland District Council,http://opendatacommunities.org/id/district-council/south-lakeland,43251,Business Support Community Services,Internal Trading Accounts,,M G D LTD,,21-05-2018,0000077581,35,0,MOTs 2018/19,381400,Vehicle Mgt Maintenance
South Lakeland District Council,http://opendatacommunities.org/id/district-council/south-lakeland,43251,Business Support Community Services,Cultural Environmental Regulatory & Planning Services,http://opendatacommunities.org/def/concept/finance/sercop/objective/104,ADECCO UK LIMITED,00593232,21-05-2018,0000077582,45.99,0,Agency staff 2018/19,261400,HR Temporary & Agency Staff
South Lakeland District Council,http://opendatacommunities.org/id/district-council/south-lakeland,43251,Business Support Community Services,Cultural Environmental Regulatory & Planning Services,http://opendatacommunities.org/def/concept/finance/sercop/objective/104,ADECCO UK LIMITED,00593232,21-05-2018,0000077583,194.51,0,Agency staff 2018/19,261400,HR Temporary & Agency Staff
South Lakeland District Council,http://opendatacommunities.org/id/district-council/south-lakeland,43251,Business Support Community Services,Cultural Environmental Regulatory & Planning Services,http://opendatacommunities.org/def/concept/finance/sercop/objective/104,ARCO LIMITED,00133804,21-05-2018,0000077584,44.4,0,Cleaning materials,141100,Clothing Protective
South Lakeland District Council,http://opendatacommunities.org/id/district-council/south-lakeland,43251,Business Support Community Services,Cultural Environmental Regulatory & Planning Services,http://opendatacommunities.org/def/concept/finance/sercop/objective/104,ARCO LIMITED,00133804,21-05-2018,0000077585,768,0,Cleaning materials,141100,Clothing Protective
South Lakeland District Council,http://opendatacommunities.org/id/district-council/south-lakeland,43251,Business Support Community Services,Cultural Environmental Regulatory & Planning Services,http://opendatacommunities.org/def/concept/finance/sercop/objective/104,CUMBRIA WASTE RECYCLING LTD,03162439,21-05-2018,0000077586,1527.68,0,Skip emptying at Ecclerigg & Ulverston,182012,Environment Waste Management Recycling
South Lakeland District Council,http://opendatacommunities.org/id/district-council/south-lakeland,43251,Business Support Community Services,Cultural Environmental Regulatory & Planning Services,http://opendatacommunities.org/def/concept/finance/sercop/objective/104,CUMBRIA WASTE RECYCLING LTD,03162439,21-05-2018,0000077587,248,0,Skip emptying at Ecclerigg & Ulverston,182012,Environment Waste Management Recycling
South Lakeland District Council,http://opendatacommunities.org/id/district-council/south-lakeland,43251,Business Support Community Services,Transport Planning Policy,http://opendatacommunities.org/def/concept/finance/sercop/objective/107,ARCO LIMITED,00133804,21-05-2018,0000077588,21.89,0,Cleaning materials,141100,Clothing Protective
South Lakeland District Council,http://opendatacommunities.org/id/district-council/south-lakeland,43251,Business Support Community Services,Cultural Environmental Regulatory & Planning Services,http://opendatacommunities.org/def/concept/finance/sercop/objective/104,ARCO LIMITED,00133804,21-05-2018,0000077588,27.76,0,Cleaning materials,141100,Clothing Protective
South Lakeland District Council,http://opendatacommunities.org/id/district-council/south-lakeland,43251,Policy & Partnerships,Central Services,http://opendatacommunities.org/def/concept/finance/sercop/objective/102,IOSH SERVICES LTD,01816826,21-05-2018,0000077590,120,0,IOSH Managing Safely work books,221100,Health & Safety� Maintenance
South Lakeland District Council,http://opendatacommunities.org/id/district-council/south-lakeland,43251,Development Implementation,Central Services,http://opendatacommunities.org/def/concept/finance/sercop/objective/102,CUMBRIA WASTE RECYCLING LTD,03162439,21-05-2018,0000077592,34.52,0,Langstone House 360 ltr Wheelie Bin,182012,Environment Waste Management Recycling
South Lakeland District Council,http://opendatacommunities.org/id/district-council/south-lakeland,43251,Development Implementation,Central Services,http://opendatacommunities.org/def/concept/finance/sercop/objective/102,CUMBRIA WASTE RECYCLING LTD,03162439,21-05-2018,0000077593,235.8,0,South Lakeland House Bin & Skip Emptying,182012,Environment Waste Management Recycling
South Lakeland District Council,http://opendatacommunities.org/id/district-council/south-lakeland,43251,Development Implementation,Culture and Related Serv,http://opendatacommunities.org/def/concept/finance/sercop/objective/104,Dufell Roofing,01080775,21-05-2018,0000077594,102839.63,0,Kendal Leisure Centre - Roof Replacement,109999,Building Not Elsewhere Classified
South Lakeland District Council,http://opendatacommunities.org/id/district-council/south-lakeland,43251,Electoral Services,Central Services,http://opendatacommunities.org/def/concept/finance/sercop/objective/102,ROYAL MAIL GROUP PLC,,21-05-2018,0000077595,1185.12,0,Response plus service week eneding,301200,Mail Services� Postage
South Lakeland District Council,http://opendatacommunities.org/id/district-council/south-lakeland,43251,Development Implementation,Central Services,http://opendatacommunities.org/def/concept/finance/sercop/objective/102,LAMBERT SMITH HAMPTON GROUP,2521225,21-05-2018,0000077596,750,0,Kendal Town Hall - Stonework Repairs,999999,Unclassifiable
South Lakeland District Council,http://opendatacommunities.org/id/district-council/south-lakeland,43251,Development Implementation,Central Services,http://opendatacommunities.org/def/concept/finance/sercop/objective/102,John Wade Groundworks Ltd,,21-05-2018,0000077597,235,0,Removal of Cobbles from Canal Head,100000,Building Construction materials
South Lakeland District Council,http://opendatacommunities.org/id/district-council/south-lakeland,43251,Electoral Services,Central Services,http://opendatacommunities.org/def/concept/finance/sercop/objective/102,NORTHGATE VEHICLE HIRE LTD,01434157,21-05-2018,0000077598,30.28,0,Car Hire for S M for PV checks,381600,Vehicle Mgt Leasing
South Lakeland District Council,http://opendatacommunities.org/id/district-council/south-lakeland,43251,Lake Wardens,Cultural Environmental Regulatory & Planning Services,http://opendatacommunities.org/def/concept/finance/sercop/objective/104,Medical Gas Solutions Ltd T/a,04967365,21-05-2018,0000077599,37.95,0,Monthly Rental of medical gas cylinders,221100,Health & Safety� Maintenance
South Lakeland District Council,http://opendatacommunities.org/id/district-council/south-lakeland,43251,Business Support Community Services,Internal Trading Accounts,,K S INTERNATIONAL LTD,02703321,21-05-2018,0000077605,515,0,Parts,381500,Vehicle Mgt Parts
South Lakeland District Council,http://opendatacommunities.org/id/district-council/south-lakeland,43251,Revenues and Benefits,Central Services,http://opendatacommunities.org/def/concept/finance/sercop/objective/102,VENN GROUP RECRUITMENT SOLUTIONS,,21-05-2018,0000077607,1002.02,0,Agency Staff - T H A756938,261400,HR Temporary & Agency Staff
South Lakeland District Council,http://opendatacommunities.org/id/district-council/south-lakeland,43251,Revenues and Benefits,Central Services,http://opendatacommunities.org/def/concept/finance/sercop/objective/102,F P Mailing T/A The Mailing Room,08708033,21-05-2018,0000077608,3300.38,0,Letter Opener & Machine Service Plan,309999,Mail Services� Not Elsewhere Classified
South Lakeland District Council,http://opendatacommunities.org/id/district-council/south-lakeland,43251,Revenues and Benefits,Central Services,http://opendatacommunities.org/def/concept/finance/sercop/objective/102,CAPITA BUSINESS SERVICES LTD,02299747,21-05-2018,0000077609,6824.48,0,DWP LA Data Sharing Programme: IT Costs,261500,HR Training & Conferences
South Lakeland District Council,http://opendatacommunities.org/id/district-council/south-lakeland,43251,Revenues and Benefits,SLDC as Agent,,ROYAL MAIL GROUP PLC,,23-05-2018,0000077610,137.41,0,Response services account 0917139003,301200,Mail Services� Postage
South Lakeland District Council,http://opendatacommunities.org/id/district-council/south-lakeland,43251,Revenues and Benefits,Housing Benefit Payments,,South Lakes Citizens Advice Bureau,06113551,21-05-2018,0000077611,230.94,0,Universal Credit,261200,HR Professional & Advisory Services
South Lakeland District Council,http://opendatacommunities.org/id/district-council/south-lakeland,43251,Social Enterprise Admin,Cultural Environmental Regulatory & Planning Services,http://opendatacommunities.org/def/concept/finance/sercop/objective/104,FURNESS NEWSPAPERS LTD,01155841,30-05-2018,0000077612,86.56,0,PUBLIC NOTICES FOR PLANNING 1 APRIL 2015,191000,Facilities Advertising
South Lakeland District Council,http://opendatacommunities.org/id/district-council/south-lakeland,43251,Democratic Services,Central Services,http://opendatacommunities.org/def/concept/finance/sercop/objective/102,MARCHESI CENTRE,,21-05-2018,0000077615,39,0,Hire of the Marchesi Centre for Lake,321000,Social Care Adult
South Lakeland District Council,http://opendatacommunities.org/id/district-council/south-lakeland,43251,Electoral Services,Central Services,http://opendatacommunities.org/def/concept/finance/sercop/objective/102,ROYAL MAIL GROUP PLC,,21-05-2018,0000077616,71.78,0,Return postage 21/04/18 - 28/04/2018,301200,Mail Services� Postage
South Lakeland District Council,http://opendatacommunities.org/id/district-council/south-lakeland,43251,Electoral Services,Central Services,http://opendatacommunities.org/def/concept/finance/sercop/objective/102,Greenwich Leisure Ltd,,21-05-2018,0000077617,6366.14,0,Room hire for the election,291400,Arts & Leisure Services Sport & Fitness
South Lakeland District Council,http://opendatacommunities.org/id/district-council/south-lakeland,43251,Kendal Town Hall,External Trading Accounts,,NUMATIC INTERNATIONAL LIMITED,00773331,21-05-2018,0000077618,256.84,0,Call out to Kendal Indoor Market floor,131011,Cleaning & Janitorial Cleaning Materials
South Lakeland District Council,http://opendatacommunities.org/id/district-council/south-lakeland,43251,Revenues and Benefits,Central Services,http://opendatacommunities.org/def/concept/finance/sercop/objective/102,CIVICA UK LTD,01628868,21-05-2018,0000077619,9470,0,"Corporate Fraud  - Supply,",271600,ICT Software Customised & Bespoke
South Lakeland District Council,http://opendatacommunities.org/id/district-council/south-lakeland,43251,Revenues and Benefits,SLDC as Agent,,ROYAL MAIL GROUP PLC,,21-05-2018,0000077620,1436.88,0,2018-19 Postal Charges a/c 0198123013,301200,Mail Services� Postage
South Lakeland District Council,http://opendatacommunities.org/id/district-council/south-lakeland,43251,Social Enterprise Admin,Cultural Environmental Regulatory & Planning Services,http://opendatacommunities.org/def/concept/finance/sercop/objective/104,NEWSQUEST MEDIA GROUP LTD,03102566,21-05-2018,0000077621,148.12,0,PUBLIC NOTICES FOR PLANNING 1 APRIL - 31,191000,Facilities Advertising
South Lakeland District Council,http://opendatacommunities.org/id/district-council/south-lakeland,43251,Business Support Community Services,SLDC as Agent,,CUMBRIA COUNTY COUNCIL,,30-05-2018,0000077622,54,0,DBS Checks for Taxi Drivers,908000,Public Bodies Council support services
South Lakeland District Council,http://opendatacommunities.org/id/district-council/south-lakeland,43251,Leisure and Wellbeing,Culture and Related Serv,http://opendatacommunities.org/def/concept/finance/sercop/objective/104,Prescott Special Projects Ltd,,21-05-2018,0000077623,24354.75,0,"For paths, drainage and landscape works",391300,Construction Open Spaces
South Lakeland District Council,http://opendatacommunities.org/id/district-council/south-lakeland,43251,Democratic Services,Central Services,http://opendatacommunities.org/def/concept/finance/sercop/objective/102,Browne Jacobson LLP,OC306448,21-05-2018,0000077624,1750,0,State Aid advice.,281200,Legal Services General Support
South Lakeland District Council,http://opendatacommunities.org/id/district-council/south-lakeland,43251,Leisure and Wellbeing,Cultural Environmental Regulatory & Planning Services,http://opendatacommunities.org/def/concept/finance/sercop/objective/104,Capita Property and Infrastructure,,21-05-2018,0000077625,475,0,For data handling of SLDC 2018 Tree,191700,Facilities Property Management
South Lakeland District Council,http://opendatacommunities.org/id/district-council/south-lakeland,43251,Revenues and Benefits,Central Services,http://opendatacommunities.org/def/concept/finance/sercop/objective/102,VENN GROUP RECRUITMENT SOLUTIONS,,21-05-2018,0000077626,1016.9,0,Agency Staff - T H A756938,261400,HR Temporary & Agency Staff
South Lakeland District Council,http://opendatacommunities.org/id/district-council/south-lakeland,43251,Social Enterprise Admin,Highways & Transport Services,http://opendatacommunities.org/def/concept/finance/sercop/objective/107,CREDIT CALL LTD (NCR),,01-05-2018,0000077627,1493.09,0,Credit Call commission 2018/19,209999,Financial Services Not Elsewhere Classif
South Lakeland District Council,http://opendatacommunities.org/id/district-council/south-lakeland,43251,Revenues and Benefits,Central Services,http://opendatacommunities.org/def/concept/finance/sercop/objective/102,CIVICA UK LTD,01628868,21-05-2018,0000077633,30065,0,OpenRevenues Read only System 19.5.18 -,271600,ICT Software Customised & Bespoke
South Lakeland District Council,http://opendatacommunities.org/id/district-council/south-lakeland,43251,Development Implementation,Cultural Environmental Regulatory & Planning Services,http://opendatacommunities.org/def/concept/finance/sercop/objective/104,CUMBRIA WASTE RECYCLING LTD,03162439,21-05-2018,0000077634,116.52,0,"Waste Collection at 124 Highgate,",182012,Environment Waste Management Recycling
South Lakeland District Council,http://opendatacommunities.org/id/district-council/south-lakeland,43251,Business Support Community Services,Internal Trading Accounts,,FST CONSUMABLES LTD,01342012,21-05-2018,0000077635,87.29,0,Consumables 2018/19,101600,Building Hand Tools
South Lakeland District Council,http://opendatacommunities.org/id/district-council/south-lakeland,43251,Business Support Community Services,Internal Trading Accounts,,FAUN ZOELLER (UK) LTD,00751804,21-05-2018,0000077636,315,0,Repair SL210 & SL211,381400,Vehicle Mgt Maintenance
South Lakeland District Council,http://opendatacommunities.org/id/district-council/south-lakeland,43251,Business Support Community Services,Cultural Environmental Regulatory & Planning Services,http://opendatacommunities.org/def/concept/finance/sercop/objective/104,GB Sign Solutions Ltd,09609330,21-05-2018,0000077637,108.5,0,Street nameplates,102400,Building Signage
South Lakeland District Council,http://opendatacommunities.org/id/district-council/south-lakeland,43251,Business Support Community Services,Internal Trading Accounts,,DENNIS EAGLE LTD,03794455,21-05-2018,0000077638,-100.36,0,Parts,381300,Vehicle Mgt Industrial
South Lakeland District Council,http://opendatacommunities.org/id/district-council/south-lakeland,43251,Business Support Community Services,Internal Trading Accounts,,DENNIS EAGLE LTD,03794455,21-05-2018,0000077639,761.26,0,Parts,381300,Vehicle Mgt Industrial
South Lakeland District Council,http://opendatacommunities.org/id/district-council/south-lakeland,43251,Business Support Community Services,Internal Trading Accounts,,FAUN ZOELLER (UK) LTD,00751804,21-05-2018,0000077640,395,0,Repair SL210 & SL211,381400,Vehicle Mgt Maintenance
South Lakeland District Council,http://opendatacommunities.org/id/district-council/south-lakeland,43251,Business Support Community Services,Cultural Environmental Regulatory & Planning Services,http://opendatacommunities.org/def/concept/finance/sercop/objective/104,ARCO LIMITED,00133804,21-05-2018,0000077641,32.16,0,Cleaning materials,141100,Clothing Protective
South Lakeland District Council,http://opendatacommunities.org/id/district-council/south-lakeland,43251,Business Support Community Services,Internal Trading Accounts,,EK MOTOR FACTORS LTD,00838524,21-05-2018,0000077642,3.2,0,Parts,381400,Vehicle Mgt Maintenance
South Lakeland District Council,http://opendatacommunities.org/id/district-council/south-lakeland,43251,Business Support Community Services,Housing Services,http://opendatacommunities.org/def/concept/finance/sercop/objective/108,Locata Housing Services Ltd,,21-05-2018,0000077644,5500,0,1 Year support/maintenance of the,271440,ICT Software
South Lakeland District Council,http://opendatacommunities.org/id/district-council/south-lakeland,43251,Environment and Housing,Housing Services,http://opendatacommunities.org/def/concept/finance/sercop/objective/108,Ashley Bennett,08672920,21-05-2018,0000077726,400,0,Monthly rent ,202000,Financial Services Rents
South Lakeland District Council,http://opendatacommunities.org/id/district-council/south-lakeland,43251,Electoral Services,Central Services,http://opendatacommunities.org/def/concept/finance/sercop/objective/102,THOMSON REUTERS (PROFESSIONAL) UK LTD,01679046,23-05-2018,0000077728,223,0,Schofields Election Law LL&CD R40,202100,Financial Services Subscriptions
South Lakeland District Council,http://opendatacommunities.org/id/district-council/south-lakeland,43251,Cemeteries Office,Cultural Environmental Regulatory & Planning Services,http://opendatacommunities.org/def/concept/finance/sercop/objective/104,CUMBRIA WASTE RECYCLING LTD,03162439,21-05-2018,0000077737,112.36,0,Cemetery Bin Emptying 2018,182012,Environment Waste Management Recycling
South Lakeland District Council,http://opendatacommunities.org/id/district-council/south-lakeland,43251,Cemeteries Office,Cultural Environmental Regulatory & Planning Services,http://opendatacommunities.org/def/concept/finance/sercop/objective/104,CUMBRIA WASTE RECYCLING LTD,03162439,21-05-2018,0000077738,53.64,0,Cemetery Bin Emptying 2018,182012,Environment Waste Management Recycling
South Lakeland District Council,http://opendatacommunities.org/id/district-council/south-lakeland,43251,Cemeteries Office,Cultural Environmental Regulatory & Planning Services,http://opendatacommunities.org/def/concept/finance/sercop/objective/104,CUMBRIA WASTE RECYCLING LTD,03162439,21-05-2018,0000077739,63.72,0,Cemetery Bin Emptying 2018,182012,Environment Waste Management Recycling
South Lakeland District Council,http://opendatacommunities.org/id/district-council/south-lakeland,43251,Cemeteries Office,Cultural Environmental Regulatory & Planning Services,http://opendatacommunities.org/def/concept/finance/sercop/objective/104,CUMBRIA WASTE RECYCLING LTD,03162439,21-05-2018,0000077740,69.04,0,Cemetery Bin Emptying 2018,182012,Environment Waste Management Recycling
South Lakeland District Council,http://opendatacommunities.org/id/district-council/south-lakeland,43251,Financial Services,Central Services,http://opendatacommunities.org/def/concept/finance/sercop/objective/102,LAKE DISTRICT NATIONAL PARK AUTHORITY,,21-05-2018,0000077741,475,0,Hire of Murley Moss boadroom on 3 May,201700,Financial Services Grants
South Lakeland District Council,http://opendatacommunities.org/id/district-council/south-lakeland,43251,Financial Services,Central Services,http://opendatacommunities.org/def/concept/finance/sercop/objective/102,STONECROSS MANOR HOTEL,,21-05-2018,0000077742,384,0,Room hire for election polling station,261500,HR Training & Conferences
South Lakeland District Council,http://opendatacommunities.org/id/district-council/south-lakeland,43251,Cemeteries Office,Cultural Environmental Regulatory & Planning Services,http://opendatacommunities.org/def/concept/finance/sercop/objective/104,CUMBRIA WASTE RECYCLING LTD,03162439,21-05-2018,0000077743,89.12,0,Cemetery Bin Emptying 2018,182012,Environment Waste Management Recycling
South Lakeland District Council,http://opendatacommunities.org/id/district-council/south-lakeland,43251,Cemeteries Office,Cultural Environmental Regulatory & Planning Services,http://opendatacommunities.org/def/concept/finance/sercop/objective/104,CUMBRIA WASTE RECYCLING LTD,03162439,21-05-2018,0000077744,29.92,0,Cemetery Bin Emptying 2018,182012,Environment Waste Management Recycling
South Lakeland District Council,http://opendatacommunities.org/id/district-council/south-lakeland,43251,Cemeteries Office,Cultural Environmental Regulatory & Planning Services,http://opendatacommunities.org/def/concept/finance/sercop/objective/104,CUMBRIA WASTE RECYCLING LTD,03162439,21-05-2018,0000077746,34.52,0,Cemetery Bin Emptying 2018,182012,Environment Waste Management Recycling
South Lakeland District Council,http://opendatacommunities.org/id/district-council/south-lakeland,43251,Democratic Services,Central Services,http://opendatacommunities.org/def/concept/finance/sercop/objective/102,FORRESTERS SOLICITORS,06503747,21-05-2018,0000077747,550,0,Abbey Health Care (Kendal) Ltd Mr P,281300,Legal Services Legal Opinion
South Lakeland District Council,http://opendatacommunities.org/id/district-council/south-lakeland,43251,Leisure and Wellbeing,Cultural Environmental Regulatory & Planning Services,http://opendatacommunities.org/def/concept/finance/sercop/objective/104,GEORGE BARKER & SONS (TIMBER MERCH) LTD,,21-05-2018,0000077829,260,0,Machine rounded pole and 4x red wood,102500,Building Timber
South Lakeland District Council,http://opendatacommunities.org/id/district-council/south-lakeland,43251,Leisure and Wellbeing,Cultural Environmental Regulatory & Planning Services,http://opendatacommunities.org/def/concept/finance/sercop/objective/104,GEORGE BARKER & SONS (TIMBER MERCH) LTD,,21-05-2018,0000077830,44,0,Machine rounded pole and 4x red wood,102500,Building Timber
South Lakeland District Council,http://opendatacommunities.org/id/district-council/south-lakeland,43251,Leisure and Wellbeing,Cultural Environmental Regulatory & Planning Services,http://opendatacommunities.org/def/concept/finance/sercop/objective/104,GEORGE BARKER & SONS (TIMBER MERCH) LTD,,21-05-2018,0000077831,300,0,"For picnic table, to be collected by",102500,Building Timber
South Lakeland District Council,http://opendatacommunities.org/id/district-council/south-lakeland,43251,Development Implementation,Central Services,http://opendatacommunities.org/def/concept/finance/sercop/objective/102,LAMBERT SMITH HAMPTON GROUP,2521225,21-05-2018,0000077832,44677.48,0,Property Services Contract April -,999999,Unclassifiable
South Lakeland District Council,http://opendatacommunities.org/id/district-council/south-lakeland,43251,Customer Services,Cultural Environmental Regulatory & Planning Services,http://opendatacommunities.org/def/concept/finance/sercop/objective/104,RIGHT 2 WORK,,23-05-2018,0000077833,4746,0,FOR REMOVAL OF BULKY WASTE,321010,Social Care Adult Advice & Counselling
South Lakeland District Council,http://opendatacommunities.org/id/district-council/south-lakeland,43251,Policy & Partnerships,Central Services,http://opendatacommunities.org/def/concept/finance/sercop/objective/102,The New Hutton Institute,,21-05-2018,0000077916,15,0,Upper Kent LAP meeting room hire,192110,Facilities Room Hire
South Lakeland District Council,http://opendatacommunities.org/id/district-council/south-lakeland,43251,Electoral Services,Central Services,http://opendatacommunities.org/def/concept/finance/sercop/objective/102,SHAW & SONS LTD,00176653,30-05-2018,0000077920,159.5,0,10 x sundries packs for parish poll on,191600,Facilities Printing
South Lakeland District Council,http://opendatacommunities.org/id/district-council/south-lakeland,43251,Development Implementation,Planning and Development,,Roland Hill (Parsonby) Ltd,01018220,30-05-2018,0000077921,36820.48,0,Demolition & Asbestos Removal at North,391200,Construction Engineering
South Lakeland District Council,http://opendatacommunities.org/id/district-council/south-lakeland,43251,Development Strategy,Cultural Environmental Regulatory & Planning Services,http://opendatacommunities.org/def/concept/finance/sercop/objective/104,NEWSQUEST MEDIA GROUP LTD,03102566,23-05-2018,0000077923,285.66,0,Holme Development Brief adoption notice,191000,Facilities Advertising
South Lakeland District Council,http://opendatacommunities.org/id/district-council/south-lakeland,43251,Social Enterprise Admin,Cultural Environmental Regulatory & Planning Services,http://opendatacommunities.org/def/concept/finance/sercop/objective/104,NEWSQUEST MEDIA GROUP LTD,03102566,23-05-2018,0000077925,105.8,0,PUBLIC NOTICES FOR PLANNING 1 APRIL - 31,191000,Facilities Advertising
South Lakeland District Council,http://opendatacommunities.org/id/district-council/south-lakeland,43251,Business Support Community Services,SLDC as Agent,,CIVICA UK LTD,01628868,21-05-2018,0000077926,125.82,0,Barrow Borough Council exceeding data,271600,ICT Software Customised & Bespoke
South Lakeland District Council,http://opendatacommunities.org/id/district-council/south-lakeland,43251,Business Support Community Services,SLDC as Agent,,CIVICA UK LTD,01628868,21-05-2018,0000077927,283.14,0,Barrow Borough Council exceeding data,271600,ICT Software Customised & Bespoke
South Lakeland District Council,http://opendatacommunities.org/id/district-council/south-lakeland,43251,Business Support Community Services,SLDC as Agent,,CIVICA UK LTD,01628868,21-05-2018,0000077928,497.34,0,Barrow Borough Council exceeding data,271600,ICT Software Customised & Bespoke
South Lakeland District Council,http://opendatacommunities.org/id/district-council/south-lakeland,43251,Business Support Community Services,Cultural Environmental Regulatory & Planning Services,http://opendatacommunities.org/def/concept/finance/sercop/objective/104,SJR Services,,23-05-2018,0000077929,40,0,Exhibition Unit service,389999,Vehicle Mgt Not Else Class
South Lakeland District Council,http://opendatacommunities.org/id/district-council/south-lakeland,43251,Business Support Community Services,Cultural Environmental Regulatory & Planning Services,http://opendatacommunities.org/def/concept/finance/sercop/objective/104,Masterstaff Limited,02777593,21-05-2018,0000077930,6106.95,0,Agency staff,261300,HR Recruitment & Assessment
South Lakeland District Council,http://opendatacommunities.org/id/district-council/south-lakeland,43251,Business Support Community Services,Internal Trading Accounts,,FAUN ZOELLER (UK) LTD,00751804,23-05-2018,0000077931,55.35,0,Nozzles,381400,Vehicle Mgt Maintenance
South Lakeland District Council,http://opendatacommunities.org/id/district-council/south-lakeland,43251,Business Support Community Services,Internal Trading Accounts,,Harry Park Tyres Ltd,08131208,23-05-2018,0000077932,2895,0,Tyres,381500,Vehicle Mgt Parts
South Lakeland District Council,http://opendatacommunities.org/id/district-council/south-lakeland,43251,Business Support Community Services,Cultural Environmental Regulatory & Planning Services,http://opendatacommunities.org/def/concept/finance/sercop/objective/104,C T HAYTON LTD,01212766,23-05-2018,0000077933,28.64,0,Hoses,391200,Construction Engineering
South Lakeland District Council,http://opendatacommunities.org/id/district-council/south-lakeland,43251,Cemeteries Office,Cultural Environmental Regulatory & Planning Services,http://opendatacommunities.org/def/concept/finance/sercop/objective/104,PARKIN & JACKSON LTD,08282892,30-05-2018,0000077934,130,0,Refix to make safe Headstones,121000,Cemetery & Crematorium Burial & Crem
South Lakeland District Council,http://opendatacommunities.org/id/district-council/south-lakeland,43251,Development Implementation,Central Services,http://opendatacommunities.org/def/concept/finance/sercop/objective/102,ADECCO UK LIMITED,00593232,30-05-2018,0000077936,76.56,0,Cleaner for SLDC - S D - April 2018,261400,HR Temporary & Agency Staff
South Lakeland District Council,http://opendatacommunities.org/id/district-council/south-lakeland,43251,Development Implementation,Central Services,http://opendatacommunities.org/def/concept/finance/sercop/objective/102,ADECCO UK LIMITED,00593232,30-05-2018,0000077937,255.2,0,Cleaner for SLDC - M P - April,261400,HR Temporary & Agency Staff
South Lakeland District Council,http://opendatacommunities.org/id/district-council/south-lakeland,43251,Democratic and Member Services,Cultural Environmental Regulatory & Planning Services,http://opendatacommunities.org/def/concept/finance/sercop/objective/104,GRANTS- MISCELLANEOUS,,21-05-2018,0000077940,1000,0,Locality donation to fund the legal set,201700,Financial Services Grants
South Lakeland District Council,http://opendatacommunities.org/id/district-council/south-lakeland,43251,Democratic and Member Services,Cultural Environmental Regulatory & Planning Services,http://opendatacommunities.org/def/concept/finance/sercop/objective/104,GRANTS- MISCELLANEOUS,,21-05-2018,0000077941,100,0,Locality donation to purchase and,201700,Financial Services Grants
South Lakeland District Council,http://opendatacommunities.org/id/district-council/south-lakeland,43251,ICT Group,Central Services,http://opendatacommunities.org/def/concept/finance/sercop/objective/102,EE UK LTD (NCR),,01-05-2018,0000077942,45.03,0,"Car Park SIMS, covers 2018/19",351000,Street & Traffic Parking Car Parks
South Lakeland District Council,http://opendatacommunities.org/id/district-council/south-lakeland,43251,ICT Group,Highways & Transport Services,http://opendatacommunities.org/def/concept/finance/sercop/objective/107,EE UK LTD (NCR),,01-05-2018,0000077942,140,0,"Car Park SIMS, covers 2018/19",351000,Street & Traffic Parking Car Parks
South Lakeland District Council,http://opendatacommunities.org/id/district-council/south-lakeland,43251,ICT Group,Central Services,http://opendatacommunities.org/def/concept/finance/sercop/objective/102,EE UK LTD (NCR),,01-05-2018,0000077942,57.65,0,"Car Park SIMS, covers 2018/19",351000,Street & Traffic Parking Car Parks
South Lakeland District Council,http://opendatacommunities.org/id/district-council/south-lakeland,43251,Democratic and Member Services,Central Services,http://opendatacommunities.org/def/concept/finance/sercop/objective/102,CUMBRIA COUNTY COUNCIL,,23-05-2018,0000077943,18,0,dispensation payment to block the 3,908000,Public Bodies Council support services
South Lakeland District Council,http://opendatacommunities.org/id/district-council/south-lakeland,43251,Business Support Community Services,Housing Services,http://opendatacommunities.org/def/concept/finance/sercop/objective/108,Ashberry Recruitment,07202591,30-05-2018,0000077944,1068.31,0,Agency staff for Town View Fields,261300,HR Recruitment & Assessment
South Lakeland District Council,http://opendatacommunities.org/id/district-council/south-lakeland,43251,Policy & Partnerships,Central Services,http://opendatacommunities.org/def/concept/finance/sercop/objective/102,LOCAL GOVERNMENT ASSOCIATION,,23-05-2018,0000077945,545,0,Attendance place for a member of,202100,Financial Services Subscriptions
South Lakeland District Council,http://opendatacommunities.org/id/district-council/south-lakeland,43251,Policy & Partnerships,Central Services,http://opendatacommunities.org/def/concept/finance/sercop/objective/102,LOCAL GOVERNMENT ASSOCIATION,,23-05-2018,0000077945,545,0,Attendance place for a member of,202100,Financial Services Subscriptions
South Lakeland District Council,http://opendatacommunities.org/id/district-council/south-lakeland,43251,Kendal Town Hall,Cultural Environmental Regulatory & Planning Services,http://opendatacommunities.org/def/concept/finance/sercop/objective/104,THE LAUNDRY SHOP LTD,05421366,23-05-2018,0000077947,48.79,0,"To washing, drying amd ironing table",131311,Cleaning & Janitorial Laundry Service
South Lakeland District Council,http://opendatacommunities.org/id/district-council/south-lakeland,43251,Environment and Housing,Housing Services,http://opendatacommunities.org/def/concept/finance/sercop/objective/108,Martin Smith,,23-05-2018,0000077951,700,0,Monthly rent ,250000,Housing
South Lakeland District Council,http://opendatacommunities.org/id/district-council/south-lakeland,43251,Electoral Services,Central Services,http://opendatacommunities.org/def/concept/finance/sercop/objective/102,SCI PRINT LTD,,23-05-2018,0000077954,2300.76,0,Ballot papers for the parish poll,191600,Facilities Printing
South Lakeland District Council,http://opendatacommunities.org/id/district-council/south-lakeland,43251,Electoral Services,Central Services,http://opendatacommunities.org/def/concept/finance/sercop/objective/102,SCI PRINT LTD,,23-05-2018,0000077955,1290,0,Count sheets for the distirct and,191600,Facilities Printing
South Lakeland District Council,http://opendatacommunities.org/id/district-council/south-lakeland,43251,Financial Services,Central Services,http://opendatacommunities.org/def/concept/finance/sercop/objective/102,Laura Ashley - The Belsfield,,23-05-2018,0000077956,250,0,Room hire for election polling station,291000,Arts & Leisure Services Events
South Lakeland District Council,http://opendatacommunities.org/id/district-council/south-lakeland,43251,Westmorland Centre Parking Office,Highways & Transport Services,http://opendatacommunities.org/def/concept/finance/sercop/objective/107,METRIC GROUP LIMITED,02560839,23-05-2018,0000077957,120,0,Lead screw kit inclusive of all parts,359999,Street & Traffic Not Elsewhere Classifie
South Lakeland District Council,http://opendatacommunities.org/id/district-council/south-lakeland,43251,Lake Wardens,Cultural Environmental Regulatory & Planning Services,http://opendatacommunities.org/def/concept/finance/sercop/objective/104,AUTOPARTS (CUMBRIA) LTD,02579204,23-05-2018,0000077958,20.62,0,2  x 5 Litres of Brake Cleaner,381500,Vehicle Mgt Parts
South Lakeland District Council,http://opendatacommunities.org/id/district-council/south-lakeland,43251,Human Resources,Central Services,http://opendatacommunities.org/def/concept/finance/sercop/objective/102,EMPLOYMENT PAGES LTD,07363099,30-05-2018,0000077959,214.2,0,employment pages advert- LGV,261400,HR Temporary & Agency Staff
South Lakeland District Council,http://opendatacommunities.org/id/district-council/south-lakeland,43251,Lake Wardens,Cultural Environmental Regulatory & Planning Services,http://opendatacommunities.org/def/concept/finance/sercop/objective/104,SHORROCK TRICHEM,04179799,23-05-2018,0000077960,137.2,0,4 x 5Lts of Washroom Foam Cleaner,131312,Cleaning & Janitorial Washroom Sanitat
South Lakeland District Council,http://opendatacommunities.org/id/district-council/south-lakeland,43251,Leisure and Wellbeing,Cultural Environmental Regulatory & Planning Services,http://opendatacommunities.org/def/concept/finance/sercop/objective/104,THE NATIONAL TRUST,,23-05-2018,0000077961,400,0,"Rent of land at Lake Wardens Office,",202100,Financial Services Subscriptions
South Lakeland District Council,http://opendatacommunities.org/id/district-council/south-lakeland,43251,Leisure and Wellbeing,Highways & Transport Services,http://opendatacommunities.org/def/concept/finance/sercop/objective/107,Inception Design,07951237,23-05-2018,0000077962,350,0,Milnthorpe back boards art work,191100,Facilities Design & Photography
South Lakeland District Council,http://opendatacommunities.org/id/district-council/south-lakeland,43251,Development Implementation,Environment Regulatory,,ENVIRONMENT AGENCY,,23-05-2018,0000077963,557,0,"Flood Assessment work at Stock Ghyll,",202100,Financial Services Subscriptions
South Lakeland District Council,http://opendatacommunities.org/id/district-council/south-lakeland,43251,Revenues and Benefits,Central Services,http://opendatacommunities.org/def/concept/finance/sercop/objective/102,VENN GROUP RECRUITMENT SOLUTIONS,,23-05-2018,0000077966,810.96,0,Agency Staff - T H A756938,261400,HR Temporary & Agency Staff
South Lakeland District Council,http://opendatacommunities.org/id/district-council/south-lakeland,43251,Westmorland Centre Parking Office,Highways & Transport Services,http://opendatacommunities.org/def/concept/finance/sercop/objective/107,LOOMIS UK LTD,03200432,23-05-2018,0000077967,1028.82,0,Cash collection February 2018 - March,192200,Facilities Security
South Lakeland District Council,http://opendatacommunities.org/id/district-council/south-lakeland,43251,Financial Services,Central Services,http://opendatacommunities.org/def/concept/finance/sercop/objective/102,Caboodle Technology Ltd,06784632,01-05-2018,0000077969,41.63,0,child care voucher service charge,260000,HR
South Lakeland District Council,http://opendatacommunities.org/id/district-council/south-lakeland,43251,Business Support Community Services,Internal Trading Accounts,,Romaquip UK,,23-05-2018,0000077974,141.4,0,Latches,381000,Vehicle Mgt Commercial
South Lakeland District Council,http://opendatacommunities.org/id/district-council/south-lakeland,43251,Business Support Community Services,Internal Trading Accounts,,SOLWAY DAF,1393710,30-05-2018,0000077975,-202.76,0,Parts,381000,Vehicle Mgt Commercial
South Lakeland District Council,http://opendatacommunities.org/id/district-council/south-lakeland,43251,Business Support Community Services,Internal Trading Accounts,,SOLWAY DAF,1393710,30-05-2018,0000077976,-10,0,Parts,381000,Vehicle Mgt Commercial
South Lakeland District Council,http://opendatacommunities.org/id/district-council/south-lakeland,43251,Business Support Community Services,Internal Trading Accounts,,SOLWAY DAF,1393710,30-05-2018,0000077977,-10,0,Parts,381000,Vehicle Mgt Commercial
South Lakeland District Council,http://opendatacommunities.org/id/district-council/south-lakeland,43251,Business Support Community Services,Cultural Environmental Regulatory & Planning Services,http://opendatacommunities.org/def/concept/finance/sercop/objective/104,CUMBRIA WASTE RECYCLING LTD,03162439,23-05-2018,0000077978,11666.66,0,Empty recycling banks in 2018/19,182012,Environment Waste Management Recycling
South Lakeland District Council,http://opendatacommunities.org/id/district-council/south-lakeland,43251,Business Support Community Services,Cultural Environmental Regulatory & Planning Services,http://opendatacommunities.org/def/concept/finance/sercop/objective/104,BRIAN ARMISTEAD LTD T/A SINKFALL RECYCLI,04133280,30-05-2018,0000077980,3039.24,0,Green waste tipping - 2018/19,391110,Construction Buildings Construction
South Lakeland District Council,http://opendatacommunities.org/id/district-council/south-lakeland,43251,Business Support Community Services,Cultural Environmental Regulatory & Planning Services,http://opendatacommunities.org/def/concept/finance/sercop/objective/104,ADECCO UK LIMITED,00593232,30-05-2018,0000077981,95.55,0,Agency staff 2018/19,261400,HR Temporary & Agency Staff
South Lakeland District Council,http://opendatacommunities.org/id/district-council/south-lakeland,43251,Business Support Community Services,Internal Trading Accounts,,HYDRAIR TRUCK & TRAILER PARTS LTD,,30-05-2018,0000077982,24.06,0,Parts,381500,Vehicle Mgt Parts
South Lakeland District Council,http://opendatacommunities.org/id/district-council/south-lakeland,43251,Business Support Community Services,Internal Trading Accounts,,EK MOTOR FACTORS LTD,00838524,30-05-2018,0000077983,43.71,0,Parts,381400,Vehicle Mgt Maintenance
South Lakeland District Council,http://opendatacommunities.org/id/district-council/south-lakeland,43251,Business Support Community Services,Internal Trading Accounts,,SOLWAY DAF,1393710,30-05-2018,0000077985,36.2,0,Parts,381000,Vehicle Mgt Commercial
South Lakeland District Council,http://opendatacommunities.org/id/district-council/south-lakeland,43251,Business Support Community Services,Internal Trading Accounts,,K S INTERNATIONAL LTD,02703321,30-05-2018,0000077986,50,0,Parts,381500,Vehicle Mgt Parts
South Lakeland District Council,http://opendatacommunities.org/id/district-council/south-lakeland,43251,Business Support Community Services,Internal Trading Accounts,,TPS Preston,,30-05-2018,0000077988,34.25,0,Parts,381400,Vehicle Mgt Maintenance
South Lakeland District Council,http://opendatacommunities.org/id/district-council/south-lakeland,43251,Business Support Community Services,Internal Trading Accounts,,SOLWAY DAF,1393710,30-05-2018,0000077989,47.03,0,Parts,381000,Vehicle Mgt Commercial
South Lakeland District Council,http://opendatacommunities.org/id/district-council/south-lakeland,43251,Business Support Community Services,Internal Trading Accounts,,SOLWAY DAF,1393710,30-05-2018,0000077990,172.99,0,Parts,381000,Vehicle Mgt Commercial
South Lakeland District Council,http://opendatacommunities.org/id/district-council/south-lakeland,43251,Business Support Community Services,Internal Trading Accounts,,SOLWAY DAF,1393710,30-05-2018,0000077992,68.37,0,Parts,381000,Vehicle Mgt Commercial
South Lakeland District Council,http://opendatacommunities.org/id/district-council/south-lakeland,43251,Business Support Community Services,Internal Trading Accounts,,SOLWAY DAF,1393710,30-05-2018,0000077993,24.35,0,Parts,381000,Vehicle Mgt Commercial
South Lakeland District Council,http://opendatacommunities.org/id/district-council/south-lakeland,43251,Business Support Community Services,Internal Trading Accounts,,EK MOTOR FACTORS LTD,00838524,30-05-2018,0000077994,425.09,0,Parts,381400,Vehicle Mgt Maintenance
South Lakeland District Council,http://opendatacommunities.org/id/district-council/south-lakeland,43251,Business Support Community Services,Internal Trading Accounts,,EK MOTOR FACTORS LTD,00838524,30-05-2018,0000077995,-180,0,Parts,381400,Vehicle Mgt Maintenance
South Lakeland District Council,http://opendatacommunities.org/id/district-council/south-lakeland,43251,Business Support Community Services,Internal Trading Accounts,,M G D LTD,,30-05-2018,0000077996,35,0,MOTs 2018/19,381400,Vehicle Mgt Maintenance
South Lakeland District Council,http://opendatacommunities.org/id/district-council/south-lakeland,43251,Business Support Community Services,Cultural Environmental Regulatory & Planning Services,http://opendatacommunities.org/def/concept/finance/sercop/objective/104,ARCO LIMITED,00133804,30-05-2018,0000077997,295.5,0,Cleaning materials,141100,Clothing Protective
South Lakeland District Council,http://opendatacommunities.org/id/district-council/south-lakeland,43251,Business Support Community Services,Cultural Environmental Regulatory & Planning Services,http://opendatacommunities.org/def/concept/finance/sercop/objective/104,JEWSON LIMITED,00348407,30-05-2018,0000077998,36.26,0,Fixtures & fittings 2017/18,101400,Building General Materials
South Lakeland District Council,http://opendatacommunities.org/id/district-council/south-lakeland,43251,Business Support Community Services,Internal Trading Accounts,,HYDRAIR TRUCK & TRAILER PARTS LTD,,30-05-2018,0000077999,42.99,0,Parts,381500,Vehicle Mgt Parts
South Lakeland District Council,http://opendatacommunities.org/id/district-council/south-lakeland,43251,Business Support Community Services,Internal Trading Accounts,,A & W COMMERCIALS LTD,02630625,30-05-2018,0000078000,162.52,0,Hoses,381400,Vehicle Mgt Maintenance
South Lakeland District Council,http://opendatacommunities.org/id/district-council/south-lakeland,43251,Business Support Community Services,Internal Trading Accounts,,C T HAYTON LTD,01212766,30-05-2018,0000078001,4.2,0,Hub caps,391200,Construction Engineering
South Lakeland District Council,http://opendatacommunities.org/id/district-council/south-lakeland,43251,Business Support Community Services,Internal Trading Accounts,,TOTALKARE LTD,05256574,30-05-2018,0000078003,121.14,0,Battery,381300,Vehicle Mgt Industrial
South Lakeland District Council,http://opendatacommunities.org/id/district-council/south-lakeland,43251,Business Support Community Services,Internal Trading Accounts,,Dundee Tyres Ltd T/A Tyrebin,06949335,30-05-2018,0000078004,88.2,0,Disposals,182012,Environment Waste Management Recycling
South Lakeland District Council,http://opendatacommunities.org/id/district-council/south-lakeland,43251,Business Support Community Services,Internal Trading Accounts,,EK MOTOR FACTORS LTD,00838524,30-05-2018,0000078005,5.95,0,Parts,381400,Vehicle Mgt Maintenance
South Lakeland District Council,http://opendatacommunities.org/id/district-council/south-lakeland,43251,Business Support Community Services,Internal Trading Accounts,,VOLVO GROUP UK LTD,02190944,30-05-2018,0000078006,503.18,0,Parts,381000,Vehicle Mgt Commercial
South Lakeland District Council,http://opendatacommunities.org/id/district-council/south-lakeland,43251,Business Support Community Services,Internal Trading Accounts,,TAYLOR ENGINEERING & FABRICATIONS LTD,04989359,30-05-2018,0000078007,34.63,0,Parts,391200,Construction Engineering
South Lakeland District Council,http://opendatacommunities.org/id/district-council/south-lakeland,43251,Business Support Community Services,Internal Trading Accounts,,Harry Park Tyres Ltd,08131208,30-05-2018,0000078008,250,0,Tyres,381500,Vehicle Mgt Parts
South Lakeland District Council,http://opendatacommunities.org/id/district-council/south-lakeland,43251,Development Implementation,Central Services,http://opendatacommunities.org/def/concept/finance/sercop/objective/102,MARGARET BARROW INTERIORS LTD T/A MBI,,30-05-2018,0000078011,540,0,3 x M207HA mesh chairs,211200,Furniture & Soft Furn Office Furniture
South Lakeland District Council,http://opendatacommunities.org/id/district-council/south-lakeland,43251,Development Implementation,Central Services,http://opendatacommunities.org/def/concept/finance/sercop/objective/102,MARGARET BARROW INTERIORS LTD T/A MBI,,30-05-2018,0000078012,140,0,1 x Mesh Task Chair in Blk Phoenix,211200,Furniture & Soft Furn Office Furniture
South Lakeland District Council,http://opendatacommunities.org/id/district-council/south-lakeland,43251,Development Implementation,Central Services,http://opendatacommunities.org/def/concept/finance/sercop/objective/102,MARGARET BARROW INTERIORS LTD T/A MBI,,30-05-2018,0000078013,113.5,0,"1 x Pin Notice Board, 44564/GR Forest",211200,Furniture & Soft Furn Office Furniture
South Lakeland District Council,http://opendatacommunities.org/id/district-council/south-lakeland,43251,Business Support Community Services,Cultural Environmental Regulatory & Planning Services,http://opendatacommunities.org/def/concept/finance/sercop/objective/104,Carrington West,,30-05-2018,0000078014,2693.35,0,Supply of agency staff for post of,159999,Consultancy Not Elsewhere Classified
South Lakeland District Council,http://opendatacommunities.org/id/district-council/south-lakeland,43251,Business Support Community Services,SLDC as Agent,,CIVICA UK LTD,01628868,30-05-2018,0000078015,1995,0,"Hosting, Support and Maintenance of",271600,ICT Software Customised & Bespoke
South Lakeland District Council,http://opendatacommunities.org/id/district-council/south-lakeland,43251,Business Support Community Services,SLDC as Agent,,CIVICA UK LTD,01628868,30-05-2018,0000078016,3460,0,60% of Mobile Site - Licence Fee,271600,ICT Software Customised & Bespoke
South Lakeland District Council,http://opendatacommunities.org/id/district-council/south-lakeland,43251,Business Support Community Services,Housing Services,http://opendatacommunities.org/def/concept/finance/sercop/objective/108,MANNA HOUSE,08041948,30-05-2018,0000078017,3000,0,Housing advice and advocacy provided,250000,Housing
South Lakeland District Council,http://opendatacommunities.org/id/district-council/south-lakeland,43251,Environment and Housing,Housing Services,http://opendatacommunities.org/def/concept/finance/sercop/objective/108,James Andrews Recruitment Solutions,06834852,30-05-2018,0000078018,946.01,0,Payment for J H,261400,HR Temporary & Agency Staff
South Lakeland District Council,http://opendatacommunities.org/id/district-council/south-lakeland,43251,Human Resources,Central Services,http://opendatacommunities.org/def/concept/finance/sercop/objective/102,FORBES SOLICITORS,,30-05-2018,0000078030,343.5,0,Disciplinary Appeal PB,281300,Legal Services Legal Opinion
South Lakeland District Council,http://opendatacommunities.org/id/district-council/south-lakeland,43251,Human Resources,Central Services,http://opendatacommunities.org/def/concept/finance/sercop/objective/102,MIDLAND SOFTWARE LTD,01852206,30-05-2018,0000078032,3597.55,0,iTrent Software Rental,271600,ICT Software Customised & Bespoke
South Lakeland District Council,http://opendatacommunities.org/id/district-council/south-lakeland,43251,Kendal Town Hall,Cultural Environmental Regulatory & Planning Services,http://opendatacommunities.org/def/concept/finance/sercop/objective/104,ALEXANDRA PLC,,30-05-2018,0000078034,159.05,0,2 x NM368 32 inch waist trousers,141300,Clothing Uniforms
South Lakeland District Council,http://opendatacommunities.org/id/district-council/south-lakeland,43251,Electoral Services,Central Services,http://opendatacommunities.org/def/concept/finance/sercop/objective/102,NEWSQUEST MEDIA GROUP LTD,03102566,30-05-2018,0000078035,169.28,0,Article and notice publication in the,191000,Facilities Advertising
South Lakeland District Council,http://opendatacommunities.org/id/district-council/south-lakeland,43251,Kendal Town Hall,External Trading Accounts,,NUMATIC INTERNATIONAL LIMITED,00773331,30-05-2018,0000078037,80,0,2nd call out to the floor cleaning,131011,Cleaning & Janitorial Cleaning Materials
South Lakeland District Council,http://opendatacommunities.org/id/district-council/south-lakeland,43251,Social Enterprise Admin,Cultural Environmental Regulatory & Planning Services,http://opendatacommunities.org/def/concept/finance/sercop/objective/104,FURNESS NEWSPAPERS LTD,01155841,30-05-2018,0000078038,86.56,0,PUBLIC NOTICES FOR PLANNING 1 APRIL 2015,191000,Facilities Advertising
South Lakeland District Council,http://opendatacommunities.org/id/district-council/south-lakeland,43251,Business Support Community Services,Central Services,http://opendatacommunities.org/def/concept/finance/sercop/objective/102,CUMBRIA COUNTY COUNCIL,,30-05-2018,0000078039,713,0,LAND CHARGE SEARCH ENQUIRIES COMMONS,908000,Public Bodies Council support services
South Lakeland District Council,http://opendatacommunities.org/id/district-council/south-lakeland,43251,Business Support Community Services,Internal Trading Accounts,,Harry Park Tyres Ltd,08131208,30-05-2018,0000078042,1550,0,Tyres,381500,Vehicle Mgt Parts
South Lakeland District Council,http://opendatacommunities.org/id/district-council/south-lakeland,43251,Business Support Community Services,Internal Trading Accounts,,EPIC Media Group Ltd,04914098,30-05-2018,0000078043,236,0,Fit graphics,191010,Facilities Advertising Promo & Recruit
South Lakeland District Council,http://opendatacommunities.org/id/district-council/south-lakeland,43251,Development Implementation,Cultural Environmental Regulatory & Planning Services,http://opendatacommunities.org/def/concept/finance/sercop/objective/104,Ulverston Community Enterprises Ltd,08904327,30-05-2018,0000078044,515.41,0,Recharge of Metered & Unmetered Water,201700,Financial Services Grants
South Lakeland District Council,http://opendatacommunities.org/id/district-council/south-lakeland,43251,Development Implementation,External Trading Accounts,,Ulverston Community Enterprises Ltd,08904327,30-05-2018,0000078045,14.17,0,Recharges of Electricity & Water for,201700,Financial Services Grants
South Lakeland District Council,http://opendatacommunities.org/id/district-council/south-lakeland,43251,Social Enterprise Admin,Highways & Transport Services,http://opendatacommunities.org/def/concept/finance/sercop/objective/107,KELTIC,08658742,30-05-2018,0000078046,94.6,0,1 Softshell Jacket Colour Black Size,141000,Clothing Childrens & Adults
South Lakeland District Council,http://opendatacommunities.org/id/district-council/south-lakeland,43251,Social Enterprise Admin,Central Services,http://opendatacommunities.org/def/concept/finance/sercop/objective/102,WOOF'S OF SEDBERGH,,30-05-2018,0000078047,200,0,MINI BUS SITE VISITS FOR MEMBERS RE,361300,Public Transport Passenger Transport
South Lakeland District Council,http://opendatacommunities.org/id/district-council/south-lakeland,43251,Business Support Community Services,Internal Trading Accounts,,EPIC Media Group Ltd,04914098,30-05-2018,0000078049,3990,0,Graphics,191010,Facilities Advertising Promo & Recruit
South Lakeland District Council,http://opendatacommunities.org/id/district-council/south-lakeland,43251,Business Support Community Services,Cultural Environmental Regulatory & Planning Services,http://opendatacommunities.org/def/concept/finance/sercop/objective/104,GB Sign Solutions Ltd,09609330,30-05-2018,0000078050,192.75,0,Street nameplates,102400,Building Signage
South Lakeland District Council,http://opendatacommunities.org/id/district-council/south-lakeland,43251,Business Support Community Services,Transport Planning Policy,http://opendatacommunities.org/def/concept/finance/sercop/objective/107,ARCO LIMITED,00133804,30-05-2018,0000078051,31.87,0,Cleaning materials,141100,Clothing Protective
South Lakeland District Council,http://opendatacommunities.org/id/district-council/south-lakeland,43251,Business Support Community Services,Cultural Environmental Regulatory & Planning Services,http://opendatacommunities.org/def/concept/finance/sercop/objective/104,ARCO LIMITED,00133804,30-05-2018,0000078051,126.42,0,Cleaning materials,141100,Clothing Protective
South Lakeland District Council,http://opendatacommunities.org/id/district-council/south-lakeland,43251,Business Support Community Services,Cultural Environmental Regulatory & Planning Services,http://opendatacommunities.org/def/concept/finance/sercop/objective/104,ARCO LIMITED,00133804,30-05-2018,0000078051,464.71,0,Cleaning materials,141100,Clothing Protective
South Lakeland District Council,http://opendatacommunities.org/id/district-council/south-lakeland,43251,Business Support Community Services,Cultural Environmental Regulatory & Planning Services,http://opendatacommunities.org/def/concept/finance/sercop/objective/104,LANCASTER TRAINING SERVICES LTD,01447612,30-05-2018,0000078052,272.5,0,Training 2018/19 (GWK),261500,HR Training & Conferences
South Lakeland District Council,http://opendatacommunities.org/id/district-council/south-lakeland,43251,Business Support Community Services,Internal Trading Accounts,,HYDRAIR TRUCK & TRAILER PARTS LTD,,30-05-2018,0000078053,49.9,0,Parts,381500,Vehicle Mgt Parts
South Lakeland District Council,http://opendatacommunities.org/id/district-council/south-lakeland,43251,Business Support Community Services,Internal Trading Accounts,,EK MOTOR FACTORS LTD,00838524,30-05-2018,0000078054,19.65,0,Parts,381400,Vehicle Mgt Maintenance
South Lakeland District Council,http://opendatacommunities.org/id/district-council/south-lakeland,43251,Business Support Community Services,Internal Trading Accounts,,DENNIS EAGLE LTD,03794455,30-05-2018,0000078055,50.46,0,Parts,381300,Vehicle Mgt Industrial
South Lakeland District Council,http://opendatacommunities.org/id/district-council/south-lakeland,43251,Business Support Community Services,Internal Trading Accounts,,EK MOTOR FACTORS LTD,00838524,30-05-2018,0000078056,26.37,0,Parts,381400,Vehicle Mgt Maintenance
South Lakeland District Council,http://opendatacommunities.org/id/district-council/south-lakeland,43251,Business Support Community Services,Internal Trading Accounts,,SOLWAY DAF,1393710,30-05-2018,0000078057,64.46,0,Parts,381000,Vehicle Mgt Commercial
South Lakeland District Council,http://opendatacommunities.org/id/district-council/south-lakeland,43251,Lake Wardens,Cultural Environmental Regulatory & Planning Services,http://opendatacommunities.org/def/concept/finance/sercop/objective/104,Lifting Gear UK Ltd,,30-05-2018,0000078061,305.93,0,2 x 6.t ton D Shackles A S Screw Pin,181811,Environment Technical Equip Measuring
South Lakeland District Council,http://opendatacommunities.org/id/district-council/south-lakeland,43251,Human Resources,Central Services,http://opendatacommunities.org/def/concept/finance/sercop/objective/102,FORBES SOLICITORS,,30-05-2018,0000078065,1319.75,0,Invoice number: 499265,281300,Legal Services Legal Opinion
South Lakeland District Council,http://opendatacommunities.org/id/district-council/south-lakeland,43251,Social Enterprise Admin,Highways & Transport Services,http://opendatacommunities.org/def/concept/finance/sercop/objective/107,BEMROSE BOOTH PARAGON LTD,04891375,30-05-2018,0000078066,1034,0,"175,000 Aura Self Adhesive Pay and",191600,Facilities Printing
South Lakeland District Council,http://opendatacommunities.org/id/district-council/south-lakeland,43251,Social Enterprise Admin,Highways & Transport Services,http://opendatacommunities.org/def/concept/finance/sercop/objective/107,BEMROSE BOOTH PARAGON LTD,04891375,30-05-2018,0000078067,-787.5,0,"175,000 Aura Self Adhesive Pay and",191600,Facilities Printing
South Lakeland District Council,http://opendatacommunities.org/id/district-council/south-lakeland,43251,Social Enterprise Admin,Highways & Transport Services,http://opendatacommunities.org/def/concept/finance/sercop/objective/107,BEMROSE BOOTH PARAGON LTD,04891375,30-05-2018,0000078068,1034,0,"175,000 Aura Self Adhesive Pay and",191600,Facilities Printing
South Lakeland District Council,http://opendatacommunities.org/id/district-council/south-lakeland,43251,Social Enterprise Admin,Highways & Transport Services,http://opendatacommunities.org/def/concept/finance/sercop/objective/107,BEMROSE BOOTH PARAGON LTD,04891375,30-05-2018,0000078069,-787.5,0,"175,000 Aura Self Adhesive Pay and",191600,Facilities Printing
South Lakeland District Council,http://opendatacommunities.org/id/district-council/south-lakeland,43251,Social Enterprise Admin,Highways & Transport Services,http://opendatacommunities.org/def/concept/finance/sercop/objective/107,BEMROSE BOOTH PARAGON LTD,04891375,30-05-2018,0000078070,1056.5,0,"175,000 Aura Self Adhesive Pay and",191600,Facilities Printing
South Lakeland District Council,http://opendatacommunities.org/id/district-council/south-lakeland,43251,Social Enterprise Admin,Highways & Transport Services,http://opendatacommunities.org/def/concept/finance/sercop/objective/107,BEMROSE BOOTH PARAGON LTD,04891375,30-05-2018,0000078071,-787.5,0,"175,000 Aura Self Adhesive Pay and",191600,Facilities Printing
South Lakeland District Council,http://opendatacommunities.org/id/district-council/south-lakeland,43251,Development Management,Cultural Environmental Regulatory & Planning Services,http://opendatacommunities.org/def/concept/finance/sercop/objective/104,Jon Etchells Consulting Ltd,4884334,30-05-2018,0000078078,5614.92,0,"L L, Natland - SL/2017/0318",152050,Consultancy Property
South Lakeland District Council,http://opendatacommunities.org/id/district-council/south-lakeland,43251,Social Enterprise Admin,Cultural Environmental Regulatory & Planning Services,http://opendatacommunities.org/def/concept/finance/sercop/objective/104,NEWSQUEST MEDIA GROUP LTD,03102566,30-05-2018,0000078079,148.12,0,PUBLIC NOTICES FOR PLANNING 1 APRIL - 31,191000,Facilities Advertising
South Lakeland District Council,http://opendatacommunities.org/id/district-council/south-lakeland,43251,Electoral Services,Central Services,http://opendatacommunities.org/def/concept/finance/sercop/objective/102,ASSOCIATION OF ELECTORAL ADMINISTRATORS,02406897,30-05-2018,0000078080,421,0,AEA Electoral Management course ,202100,Financial Services Subscriptions
South Lakeland District Council,http://opendatacommunities.org/id/district-council/south-lakeland,43251,Electoral Services,Central Services,http://opendatacommunities.org/def/concept/finance/sercop/objective/102,ASSOCIATION OF ELECTORAL ADMINISTRATORS,02406897,30-05-2018,0000078080,421.01,0,AEA Electoral Management course,202100,Financial Services Subscriptions
South Lakeland District Council,http://opendatacommunities.org/id/district-council/south-lakeland,43251,Revenues and Benefits,Central Services,http://opendatacommunities.org/def/concept/finance/sercop/objective/102,VENN GROUP RECRUITMENT SOLUTIONS,,30-05-2018,0000078081,999.34,0,Agency Staff - T H A756938,261400,HR Temporary & Agency Staff
South Lakeland District Council,http://opendatacommunities.org/id/district-council/south-lakeland,43251,Revenues and Benefits,Central Services,http://opendatacommunities.org/def/concept/finance/sercop/objective/102,CAPITA BUSINESS SERVICES LTD (NCR),,01-05-2018,0000078082,3332.48,0,2018-19 Internet Payment / bank charges,261500,HR Training & Conferences
South Lakeland District Council,http://opendatacommunities.org/id/district-council/south-lakeland,43251,Revenues and Benefits,Central Services,http://opendatacommunities.org/def/concept/finance/sercop/objective/102,Airey Consultancy Services Ltd,03518844,30-05-2018,0000078083,650,0,LSCT Update Service 2018-19 Scheme,151000,Consultancy Business
South Lakeland District Council,http://opendatacommunities.org/id/district-council/south-lakeland,43251,Business Support Community Services,Internal Trading Accounts,,AUTOKONTROL LIMITED,,30-05-2018,0000078087,66,0,Air regulators,111110,Catering Equipment & Utensils
South Lakeland District Council,http://opendatacommunities.org/id/district-council/south-lakeland,43251,Business Support Community Services,Internal Trading Accounts,,K S INTERNATIONAL LTD,02703321,30-05-2018,0000078088,60,0,Parts,381500,Vehicle Mgt Parts
South Lakeland District Council,http://opendatacommunities.org/id/district-council/south-lakeland,43251,Business Support Community Services,Internal Trading Accounts,,RIBBLESDALE AUTO ELECTRICS 1992 LTD,02732686,30-05-2018,0000078089,66.1,0,Parts,381500,Vehicle Mgt Parts
South Lakeland District Council,http://opendatacommunities.org/id/district-council/south-lakeland,43251,Business Support Community Services,Internal Trading Accounts,,RIBBLESDALE AUTO ELECTRICS 1992 LTD,02732686,30-05-2018,0000078090,136,0,Parts,381500,Vehicle Mgt Parts
South Lakeland District Council,http://opendatacommunities.org/id/district-council/south-lakeland,43251,Democratic and Member Services,Central Services,http://opendatacommunities.org/def/concept/finance/sercop/objective/102,RIVERBANK HOSPITALITY CATERING,,30-05-2018,0000078091,55,0,buffet for member training-NHS brieifng,111000,Catering Banquet & Catering
South Lakeland District Council,http://opendatacommunities.org/id/district-council/south-lakeland,43251,Revenues and Benefits,Central Services,http://opendatacommunities.org/def/concept/finance/sercop/objective/102,RIVERBANK HOSPITALITY CATERING,,30-05-2018,0000078092,110,0,Buffet for 20 delivered to the Quaker,111000,Catering Banquet & Catering
South Lakeland District Council,http://opendatacommunities.org/id/district-council/south-lakeland,43251,Business Support Community Services,Cultural Environmental Regulatory & Planning Services,http://opendatacommunities.org/def/concept/finance/sercop/objective/104,Carrington West,,30-05-2018,0000078094,1233.1,0,Supply of agency staff for post of,159999,Consultancy Not Elsewhere Classified
South Lakeland District Council,http://opendatacommunities.org/id/district-council/south-lakeland,43251,Business Support Community Services,Cultural Environmental Regulatory & Planning Services,http://opendatacommunities.org/def/concept/finance/sercop/objective/104,Carrington West,,30-05-2018,0000078095,2904.28,0,Supply of agency staff for post of,159999,Consultancy Not Elsewhere Classified
South Lakeland District Council,http://opendatacommunities.org/id/district-council/south-lakeland,43251,Business Support Community Services,Housing Services,http://opendatacommunities.org/def/concept/finance/sercop/objective/108,The Riverside Group Limited,,30-05-2018,0000078096,224.8,0,Alarm pendants for Town View Fields,250005,Housing Housing Association Services
South Lakeland District Council,http://opendatacommunities.org/id/district-council/south-lakeland,43251,Business Support Community Services,Transport Planning Policy,http://opendatacommunities.org/def/concept/finance/sercop/objective/107,KENDAL SECURITY CENTRE LTD,03179893,30-05-2018,0000078097,187.22,0,Keys - Canal Head,192212,Facilities Security Equipment
South Lakeland District Council,http://opendatacommunities.org/id/district-council/south-lakeland,43251,Business Support Community Services,Cultural Environmental Regulatory & Planning Services,http://opendatacommunities.org/def/concept/finance/sercop/objective/104,Staveley Village Association,,30-05-2018,0000078098,40,0,Memorial Hall booking 01/09/17,201700,Financial Services Grants
South Lakeland District Council,http://opendatacommunities.org/id/district-council/south-lakeland,43251,Business Support Community Services,Cultural Environmental Regulatory & Planning Services,http://opendatacommunities.org/def/concept/finance/sercop/objective/104,GB Sign Solutions Ltd,09609330,30-05-2018,0000078099,398,0,Street nameplates,102400,Building Signage
South Lakeland District Council,http://opendatacommunities.org/id/district-council/south-lakeland,43251,Business Support Community Services,Cultural Environmental Regulatory & Planning Services,http://opendatacommunities.org/def/concept/finance/sercop/objective/104,Masterstaff Limited,02777593,30-05-2018,0000078100,4910.78,0,Agency staff,261300,HR Recruitment & Assessment
South Lakeland District Council,http://opendatacommunities.org/id/district-council/south-lakeland,43251,Business Support Community Services,Transport Planning Policy,http://opendatacommunities.org/def/concept/finance/sercop/objective/107,ARCO LIMITED,00133804,30-05-2018,0000078101,20.67,0,Cleaning materials,141100,Clothing Protective
South Lakeland District Council,http://opendatacommunities.org/id/district-council/south-lakeland,43251,Business Support Community Services,Internal Trading Accounts,,Harry Park Tyres Ltd,08131208,30-05-2018,0000078102,360,0,Tyres,381500,Vehicle Mgt Parts
South Lakeland District Council,http://opendatacommunities.org/id/district-council/south-lakeland,43251,Business Support Community Services,Internal Trading Accounts,,Haztec International Ltd,04157886,30-05-2018,0000078103,435.08,0,Beacons,380000,Vehicle Management
South Lakeland District Council,http://opendatacommunities.org/id/district-council/south-lakeland,43251,Business Support Community Services,Internal Trading Accounts,,TPS Preston,,30-05-2018,0000078104,87.95,0,Parts,381400,Vehicle Mgt Maintenance
South Lakeland District Council,http://opendatacommunities.org/id/district-council/south-lakeland,43251,Business Support Community Services,Internal Trading Accounts,,EK MOTOR FACTORS LTD,00838524,30-05-2018,0000078105,109.06,0,Parts,381400,Vehicle Mgt Maintenance
South Lakeland District Council,http://opendatacommunities.org/id/district-council/south-lakeland,43251,Business Support Community Services,Internal Trading Accounts,,COMPASS COMPONENTS,,30-05-2018,0000078106,101.4,0,Consumables 2018/19,101400,Building General Materials
South Lakeland District Council,http://opendatacommunities.org/id/district-council/south-lakeland,43251,Business Support Community Services,Internal Trading Accounts,,TPS Preston,,30-05-2018,0000078107,34.25,0,Parts,381400,Vehicle Mgt Maintenance
South Lakeland District Council,http://opendatacommunities.org/id/district-council/south-lakeland,43251,Business Support Community Services,Internal Trading Accounts,,DENNIS EAGLE LTD,03794455,30-05-2018,0000078108,34.68,0,Parts,381300,Vehicle Mgt Industrial
South Lakeland District Council,http://opendatacommunities.org/id/district-council/south-lakeland,43251,Policy & Partnerships,Central Services,http://opendatacommunities.org/def/concept/finance/sercop/objective/102,Jackie Wilkinson Ltd,07591991,30-05-2018,0000078118,615.85,0,Eat for Better Business Talk for Health,151000,Consultancy Business
